Cogmind - Beta 17.1 @@@ ROGUE MODE // 2026.09.24 @ 09:42:26 Player: KURIIRI Result: Establishing 0b11! Performance ------------- Evolutions (9) 4500 Regions Visited (37) 7400 Robots Destroyed (935) 4675 Value Destroyed (56952) 56952 Prototype IDs (103) 2060 Alien Tech Used (9) 1800 Bonus (99383) 99383 TOTAL SCORE: 176770 Bonus ------- High Alert Combat Kills 11206 Follower Combat Kills 8852 Prayed to X0-1V1 5000 Major X0-1V1 Interference 23650 Hunted by Unchained 500 Spooked CY-PHR 15000 Entered Garrisons 2200 Used RIF Installer 6500 Network Hubs Disabled 400 Built Enhanced Grunts 300 A7 Reached Mainframe 300 Met R17 at Cetus 500 Met R17 at Research 2000 Destroyed MAIN.C Guards 500 Met MAIN.C 5000 Destroyed MAIN.C Shell 5000 Destroyed MAIN.C 10000 Win 3000 Friendly Fire -525 Cogmind --------- Core Integrity 1518/1710 Matter 225/1000 Energy 927/950 System Corruption 0% Temperature Cool (11) Movement Treading (143) Location 0b11 Command Parts ------- > --- POWER (3) -------- Reinforced Quantum Reactor Vortex Chain Reactor > --- PROPULSION (6) --- Experimental Biometal Heavy Treads Experimental Biometal Heavy Treads Enhanced Armored Heavy Treads > --- UTILITY (14) ----- Experimental Cooling System Huge Storage Unit Advanced Targeting Computer Experimental Targeting Computer Experimental Core Analyzer Advanced Weapon Cycler Centrium Medium Armor Plating Thermal Barrier Experimental EM Shield Improved Remote Force Field Relay Coupler [Grunt] (33) > --- WEAPON (3) ------- Graviton Cannon Ragnarok Missile Launcher > --- INVENTORY (25) --- Vortex Chain Reactor High-density Centrium Heavy Treads Experimental Cooling System Femtoactuators Centrium Medium Armor Plating Advanced Point Defense System High-powered Transdimensional Reconstructor EMDS EMDS Helical Railgun Multirail Experimental Remote Datajack Guided Remote Datajack Guided Remote Datajack Core Stripper Peak State ------------ > --- POWER ------------ Reinforced Quantum Reactor Vortex Chain Reactor > --- PROPULSION ------- Experimental Biometal Heavy Treads Experimental Biometal Heavy Treads Enhanced Armored Heavy Treads > --- UTILITY ---------- Experimental Cooling System Huge Storage Unit Advanced Targeting Computer Experimental Targeting Computer Experimental Core Analyzer Experimental Core Analyzer Improved Utility Shielding Experimental Weapon Shielding Centrium Medium Armor Plating Advanced Powered Armor Thermal Barrier Experimental EM Shield Improved Remote Force Field Relay Coupler [Proto] > --- WEAPON ----------- Multirail Tri-rail Accelerator > --- INVENTORY -------- Vortex Chain Reactor High-density Centrium Heavy Treads Experimental Cooling System Advanced Weapon Cycler Femtoactuators Centrium Medium Armor Plating Advanced Point Defense System Relay Coupler [Grunt] High-powered Transdimensional Reconstructor EMDS EMDS Helical Railgun Graviton Cannon Ragnarok Missile Launcher Experimental Remote Datajack Guided Remote Datajack Guided Remote Datajack Core Stripper [Rating: 238] Favorites ----------- Power Cooled Fission Core Engine Heavy Ion Engine Power Core Cooled Fission Core Reactor Vortex Chain Reactor Propulsion Armored Huge Wheel Treads Centrium Heavy Treads Leg Aluminum Leg Wheel Armored Huge Wheel Utility Huge Storage Unit Device Advanced Weapon Cycler Storage Huge Storage Unit Processor Advanced Targeting Computer Hackware Relay Coupler [Grunt] Protection Advanced Powered Armor Weapon Tri-rail Accelerator Energy Gun Advanced Beam Rifle Energy Cannon Subdweller Beam Cannon Ballistic Gun Enhanced Autogun Ballistic Cannon Tri-rail Accelerator Launcher Ragnarok Missile Launcher Special Weapon Advanced Remote Datajack Impact Weapon Core Stripper Slashing Weapon Ripper Build | -11 -10 -10 -8 -8 -8 -8 -7 -7 -6 -6 -6 -6 -6 -6 -6 -6 -5 -5 -5 -5 -5 -5 -4 -4 -3 -3 -3 -3 -3 -2 -2 -2 -2 -1 -1 -1 -1 ------- Run | Yrd Mat Sub Mat Gar Mat Gar Fac Gar Fac Was Fac Ext Cet Arc Hub Gar Fac Was Fac Gar Fac Gar Fac Gar Res Gar Res Tes Gar Res Qua Sec Gar Acc Gar Acc Com Slots Evolved 18 | . . . 4 . . . 2 . 2 . . . . . . . 2 . . . . . 2 . 2 . . . . 2 . . . 2 . . . Power 1 | . . . . . . . . . . . . . . . . . 1 . . . . . . . . . . . . . . . . . . . . Propulsion 5 | . . . 2 . . . 1 . . . . . . . . . . . . . . . . . 1 . . . . . . . . 1 . . . Utility 10 | . . . 1 . . . 1 . 2 . . . . . . . 1 . . . . . 1 . 1 . . . . 2 . . . 1 . . . Weapon 2 | . . . 1 . . . . . . . . . . . . . . . . . . . 1 . . . . . . . . . . . . . . Parts Attached 366 | 4 11 10 27 5 9 10 9 1 7 1 5 5 4 12 6 18 19 3 14 10 16 11 16 7 10 6 4 9 11 6 23 12 9 3 7 12 14 Power 37 | . . 1 2 . . 1 . . . 1 . . . 1 . 1 3 1 2 2 2 3 3 1 . 1 . 2 2 . 4 1 1 . 1 1 . Engine 7 | . . 1 2 . . 1 . . . . . . . . . . 1 . . . 1 1 . . . . . . . . . . . . . . . Core 9 | . . . . . . . . . . . . . . . . . 2 . 2 2 . . 2 1 . . . . . . . . . . . . . Reactor 21 | . . . . . . . . . . 1 . . . 1 . 1 . 1 . . 1 2 1 . . 1 . 2 2 . 4 1 1 . 1 1 . Propulsion 49 | 2 3 3 8 2 . 2 1 1 . . . . . . . 4 1 . 5 2 . . . . 5 1 . 1 2 . 2 2 . . . 2 . Treads 36 | 2 2 2 8 1 . 1 1 . . . . . . . . 3 . . 1 2 . . . . 3 1 . 1 2 . 2 2 . . . 2 . Leg . | . . . . . . . . . . . . . . . . . . . . . . . . . . . . . . . . . . . . . . Wheel 13 | . 1 1 . 1 . 1 . 1 . . . . . . . 1 1 . 4 . . . . . 2 . . . . . . . . . . . . Hover . | . . . . . . . . . . . . . . . . . . . . . . . . . . . . . . . . . . . . . . Flight . | . . . . . . . . . . . . . . . . . . . . . . . . . . . . . . . . . . . . . . Utility 204 | 1 5 . 4 3 7 2 8 . 5 . 4 3 1 8 5 9 14 1 6 5 12 7 9 6 3 3 4 4 7 4 14 8 6 3 6 5 12 Device 70 | 1 1 . 2 . 2 . 4 . . . 1 . . 6 . 2 5 1 4 3 4 2 5 3 1 1 . 2 1 . 8 3 1 1 1 4 1 Storage 13 | . 3 . . . 1 . . . 2 . . 1 . 1 . . . . . . . . . 1 . . 1 1 . 1 1 . . . . . . Processor 22 | . . . . 3 2 . . . 1 . . 1 . . . 3 1 . . . 2 3 . 1 1 . . 1 . . . 2 . . . . 1 Hackware 77 | . . . 1 . 1 1 2 . 2 . 3 1 . . 4 4 7 . 1 2 4 2 3 1 . 2 3 . 6 2 2 3 5 2 5 1 7 Protection 22 | . 1 . 1 . 1 1 2 . . . . . 1 1 1 . 1 . 1 . 2 . 1 . 1 . . . . 1 3 . . . . . 3 Artifact . | . . . . . . . . . . . . . . . . . . . . . . . . . . . . . . . . . . . . . . Weapon 76 | 1 3 6 13 . 2 5 . . 2 . 1 2 3 3 1 4 1 1 1 1 2 1 4 . 2 1 . 2 . 2 3 1 2 . . 4 2 Energy Gun 7 | . . . 4 . . . . . . . . . 1 . . . . . . . . . . . . . . 1 . . . . . . . 1 . Energy Cannon 6 | . . 3 1 . . . . . . . . . . . . . . . . . . . . . 1 . . . . . 1 . . . . . . Ballistic Gun 20 | 1 . 1 4 . 2 1 . . . . 1 1 1 2 1 . . . . . . . 2 . . . . . . . . . 1 . . 1 1 Ballistic Cannon 14 | . 3 . 1 . . . . . . . . . . . . 2 1 1 . . 1 . 1 . . 1 . . . 1 1 . . . . 1 . Launcher 11 | . . 2 2 . . 2 . . 1 . . . 1 . . 1 . . . 1 . . . . . . . . . . . . 1 . . . . Special Weapon 14 | . . . . . . 2 . . 1 . . 1 . . . . . . 1 . 1 1 1 . 1 . . 1 . 1 . 1 . . . 1 1 Impact Weapon 2 | . . . . . . . . . . . . . . . . 1 . . . . . . . . . . . . . . 1 . . . . . . Slashing Weapon 2 | . . . 1 . . . . . . . . . . 1 . . . . . . . . . . . . . . . . . . . . . . . Piercing Weapon . | . . . . . . . . . . . . . . . . . . . . . . . . . . . . . . . . . . . . . . Special Melee Weapon . | . . . . . . . . . . . . . . . . . . . . . . . . . . . . . . . . . . . . . . Unidentified Prototypes 57 | . 1 . 5 . 1 . . . . . . . 3 1 . 1 2 . . . . 6 6 . 6 . . 6 . . 11 1 . . . 6 1 Corrupted Parts 7 | . . . . . . 1 . . . . . . 1 3 . 1 . . . 1 . . . . . . . . . . . . . . . . . System Corruption 59 | . . . . . . 10 . . . . . . 5 30 . 4 . . . 10 . . . . . . . . . . . . . . . . . Parts Lost 47 | . 1 1 2 1 . 2 1 . . . 1 . . . . 3 7 . 4 1 3 3 . . 2 4 . . . . 3 1 . 1 . 1 5 Power 12 | . . 1 1 . . . . . . . . . . . . . 2 . 2 1 1 2 . . . 1 . . . . 1 . . . . . . Propulsion 7 | . . . . 1 . . . . . . . . . . . 2 1 . 1 . 1 . . . . 1 . . . . . . . . . . . Utility 22 | . 1 . . . . . 1 . . . . . . . . 1 4 . 1 . 1 1 . . 2 2 . . . . 2 1 . 1 . 1 3 Weapon 6 | . . . 1 . . 2 . . . . 1 . . . . . . . . . . . . . . . . . . . . . . . . . 2 Highest Loss Streak 5 | . 1 1 1 1 . 1 1 . . . 1 . . . . 2 3 . 2 1 2 2 . . 1 3 . . . . 2 1 . 1 . 1 5 To Critical Strikes 4 | . . . . . . . . . . . . . . . . . . . . . 1 . . . . 2 . . . . . . . . . . 1 Average Backups 20 | 4 10 15 18 19 22 22 21 22 22 23 22 22 22 21 21 21 18 16 19 20 20 21 22 21 21 20 20 21 21 21 21 20 20 20 21 21 17 Power 1 | 1 . . . 1 1 . . . . . 1 1 1 2 2 1 1 1 1 1 1 . . 1 1 1 2 2 3 4 3 1 1 1 1 1 1 Propulsion 1 | 2 3 4 4 2 3 3 1 1 2 2 1 . . 1 1 1 . . 1 2 1 2 2 1 1 . . 1 1 1 1 2 2 1 1 1 1 Utility 11 | . 2 4 4 5 5 6 7 11 12 13 12 13 13 12 12 13 12 11 11 12 12 14 15 14 15 15 15 15 14 13 11 8 9 11 12 12 7 Weapon 3 | 1 4 6 8 10 10 9 10 6 5 6 5 4 3 3 3 3 2 1 1 1 2 1 2 2 2 2 2 1 2 2 2 3 4 3 3 3 4 Tool/Special . | . . . . . . . . . . . . . . . . . . . . . . . . . . . . . . . . . . . . . . Unused Backups 118 | . 6 3 4 1 2 1 . 3 1 3 . . 2 . . 8 2 . 3 3 1 4 12 6 2 2 . 6 4 . 2 7 11 . 5 6 8 Power 3 | . . . . . . . . . . . . . . . . 1 . . . . . . . . . . . . 1 . . . 1 . . . . Propulsion 19 | . . 2 2 . 1 . . . . . . . . . . . . . . . . . 2 . . . . 3 . . 1 1 4 . . 2 1 Utility 66 | . 3 1 . 1 . 1 . . 1 3 . . 1 . . 6 2 . 1 3 . 4 7 6 2 2 . 3 3 . . 1 4 . 5 3 3 Weapon 23 | . 3 . 2 . 1 . . 3 . . . . 1 . . 1 . . 2 . 1 . 2 . . . . . . . . 3 . . . 1 3 Tool/Special 7 | . . . . . . . . . . . . . . . . . . . . . . . 1 . . . . . . . 1 2 2 . . . 1 Average Slot Usage (%) 82 | . 99 99 97 98 90 90 91 83 78 81 79 81 76 81 85 75 69 76 70 72 75 82 87 84 82 81 85 85 84 83 83 81 82 78 79 77 78 Engine 2 | . 14 13 7 8 8 8 7 7 6 4 . . . . . . 2 5 2 . 1 4 . . . . . . . . . . . . . . . Core 3 | . . . . . . . . . . . . . . . . . 3 11 5 13 8 1 . 9 9 11 9 9 8 8 3 . . . . . . Reactor 4 | . . . . . . . . . . 1 6 6 6 6 6 6 2 . 2 . 2 10 14 5 3 1 4 3 4 4 6 8 8 7 7 7 7 Treads 10 | . 22 25 30 27 8 8 14 10 . . . . . . . 6 1 5 6 10 10 11 5 9 9 12 13 13 13 12 12 11 12 10 11 11 11 Wheel 3 | . 5 2 3 1 8 8 7 8 12 12 12 12 12 12 12 4 9 5 4 . . . 4 . 2 . . . . . . . . . . . . Device 10 | . 10 14 8 2 3 8 8 . . . 4 . . 5 3 2 7 11 14 15 12 21 12 14 11 13 12 12 12 12 14 14 16 18 15 12 12 Storage 5 | . 14 14 8 8 8 8 7 7 6 6 6 6 6 6 6 6 5 5 5 5 5 5 5 5 4 4 4 4 4 4 4 4 4 3 3 3 3 Processor 9 | . . . . 8 16 16 14 14 17 18 12 12 12 12 12 6 5 5 5 5 6 5 15 12 12 13 13 13 13 12 12 11 12 11 11 11 13 Hackware 13 | . . . 8 8 4 3 7 7 10 12 12 18 18 17 21 22 17 16 11 8 14 9 11 13 13 10 13 13 13 16 15 16 14 12 16 19 12 Protection 4 | . 2 . 4 8 7 4 4 7 6 6 6 6 6 1 3 5 5 5 5 5 4 5 5 5 4 3 4 3 3 4 5 4 4 4 4 3 8 Ballistic Gun 4 | . . 10 6 23 24 21 20 17 9 6 9 17 7 9 12 4 . . . . . . 3 . . . . . . . . . . . . . . Ballistic Cannon 3 | . 27 1 8 . . . . . . . . . . . . 3 4 3 4 4 4 4 3 5 4 4 4 3 4 4 3 3 4 3 2 3 2 Special Weapon 2 | . . . . . . . . . 2 6 4 . 1 2 4 3 1 1 . . . 1 5 4 4 4 4 4 4 4 4 4 3 2 2 2 1 Peak Build Rating 238 | 7 23 27 43 44 47 48 63 58 67 69 77 76 83 90 92 101 96 106 118 113 124 147 155 158 169 167 159 169 172 182 204 214 205 226 234 225 238 Average Rating 126 | 6 10 23 38 39 45 46 54 56 62 65 73 75 76 82 86 90 88 98 103 108 109 129 144 150 154 155 157 162 163 174 186 197 199 217 216 211 220 On Entrance 110 | 6 7 23 27 38 44 46 46 56 58 63 69 76 76 83 88 92 91 92 106 99 110 124 146 139 152 166 156 159 163 172 174 201 202 199 226 213 217 Avg Prop Armor Cover (%) 9 | . 9 13 21 8 8 9 14 10 . . . . . . . 8 7 7 7 . . . 9 9 9 . . . . . . 6 . . . . . Naked Turns . | . . . . . . . . . . . . . . . . . . . . . . . . . . . . . . . . . . . . . . Heaviest Build 218 | 13 52 58 72 66 109 112 132 132 135 139 148 142 148 151 151 173 185 187 189 170 174 182 194 182 182 179 177 183 183 183 208 207 208 216 216 212 218 Greatest Support 275 | 40 40 40 86 80 28 28 28 56 56 56 56 56 56 56 56 100 56 28 160 160 155 155 155 155 195 190 180 180 185 185 220 225 225 275 275 275 260 Greatest Overweight (x) 16 | . 3 4 5 2 3 3 4 4 2 2 2 2 2 2 2 6 6 6 16 1 2 1 6 6 6 . . 1 1 . . 5 . . . . . Average Overweight (x) 1 | . . . 1 . 2 3 3 3 1 2 2 1 2 2 2 4 3 6 4 . . . 5 1 2 . . . . . . . . . . . . Largest Inventory Capacity 25 | 8 20 20 20 20 25 25 25 25 25 25 25 25 25 25 25 25 25 25 25 25 25 25 25 25 25 25 25 25 25 25 25 25 25 25 25 25 25 Average Capacity 24 | 8 12 15 20 20 24 25 25 25 25 25 25 25 25 25 25 25 25 25 25 25 25 25 25 25 25 25 25 25 25 25 25 25 25 25 25 25 25 Most Carried 25 | 6 15 17 20 20 25 25 25 25 25 25 25 25 25 25 25 25 25 19 25 25 25 25 25 25 25 25 25 25 25 25 25 25 25 25 25 25 25 Average Carried 22 | 4 10 15 19 19 23 24 22 23 23 24 23 24 24 24 24 24 22 17 21 24 22 23 24 24 24 22 22 24 23 23 24 24 24 23 24 24 21 Final Capacity 25 | 8 15 20 20 20 25 25 25 25 25 25 25 25 25 25 25 25 25 25 25 25 25 25 25 25 25 25 25 25 25 25 25 25 25 25 25 25 25 Final Carried 25 | 4 15 17 20 20 25 23 24 25 23 24 24 25 25 25 24 24 18 19 25 25 24 25 25 25 25 23 24 23 25 25 25 25 25 22 25 25 20 Class Distribution -------------------- 44% | Botlord-Gunner 11% | Botlord-Mutant 9% | Bothacker-Mutant 9% | Botlord-Tank 8% | Gunner 6% | Mutant 3% | Bothacker-Gunner Dominant Class ---------------- Mutant | -10/Materials Scavenger-Mutant | -10/Subcaves Gunner | -8/Materials Gunner | -8/Garrison Gunner | -8/Materials Gunner | -8/Garrison Gunner | -7/Factory Botlord-Gunner | -7/Garrison Botlord-Gunner | -6/Factory Botlord-Gunner | -6/Waste Botlord-Gunner | -6/Factory Botlord-Gunner | -6/Extension Bothacker-Gunner | -6/Cetus Bothacker-Mutant | -6/Archives Bothacker-Gunner | -6/Hub_04(d) Botlord-Tank | -6/Garrison Botlord-Mutant | -5/Factory Bothacker-Mutant | -5/Waste Bothacker-Mutant | -5/Factory Bothacker-Mutant | -5/Garrison Botlord-Mutant | -5/Factory Bothacker-Mutant | -5/Garrison Botlord-Gunner | -4/Factory Botlord-Gunner | -4/Garrison Botlord-Gunner | -3/Research Botlord-Gunner | -3/Garrison Botlord-Gunner | -3/Research Botlord-Gunner | -3/Testing Botlord-Gunner | -3/Garrison Botlord-Gunner | -2/Research Botlord-Gunner | -2/Quarantine Botlord-Gunner | -2/Section 7 Botlord-Gunner | -2/Garrison Botlord-Gunner | -1/Access Botlord-Tank | -1/Garrison Botlord-Gunner | -1/Access Botlord-Gunner | -1/Command Resources | -11 -10 -10 -8 -8 -8 -8 -7 -7 -6 -6 -6 -6 -6 -6 -6 -6 -5 -5 -5 -5 -5 -5 -4 -4 -3 -3 -3 -3 -3 -2 -2 -2 -2 -1 -1 -1 -1 ----------- Run | Yrd Mat Sub Mat Gar Mat Gar Fac Gar Fac Was Fac Ext Cet Arc Hub Gar Fac Was Fac Gar Fac Gar Fac Gar Res Gar Res Tes Gar Res Qua Sec Gar Acc Gar Acc Com Matter Collected 34817 | 267 495 222 1042 747 1039 435 1240 94 130 518 518 1376 162 334 160 1258 2920 316 864 1008 1909 1143 1003 890 894 1178 495 917 1138 699 1047 1866 999 999 1090 1881 1524 Remotely 1096 | . . . . . . . . . . . . . . . . . 1096 . . . . . . . . . . . . . . . . . . . . Salvage Created 39374 | 186 873 354 1843 1294 1389 1107 1027 94 384 462 696 1230 220 493 165 1023 1845 692 1175 718 1722 784 991 1256 620 1055 772 1056 1284 1141 1231 1606 1106 1318 1454 2359 2349 Parts 1654 | 16 67 23 75 63 77 44 42 2 12 9 28 62 9 33 9 58 73 . 44 31 64 31 57 65 25 46 42 53 48 34 47 56 34 48 35 113 79 Haulers Intercepted 21 | . 2 . 3 . 3 . 1 . . . . 3 . . . . 2 . . . . . 1 . . . . . . 1 1 2 . 1 . 1 . Recyclers Shooed 5 | . . . . . . . . . 1 . 1 . . . . . 1 . 1 . . . . . . . . . . 1 . . . . . . . Parts Field Recycled . | . . . . . . . . . . . . . . . . . . . . . . . . . . . . . . . . . . . . . . Retrieved Matter . | . . . . . . . . . . . . . . . . . . . . . . . . . . . . . . . . . . . . . . Parts Self-Destructed 3 | . . 3 . . . . . . . . . . . . . . . . . . . . . . . . . . . . . . . . . . . Prevented . | . . . . . . . . . . . . . . . . . . . . . . . . . . . . . . . . . . . . . . Parts Restored 1 | . . . . . . . . . . . . . . . . . . . 1 . . . . . . . . . . . . . . . . . . Broken 1 | . . . . . . . . . . . . . . . . . . . 1 . . . . . . . . . . . . . . . . . . Kills | -11 -10 -10 -8 -8 -8 -8 -7 -7 -6 -6 -6 -6 -6 -6 -6 -6 -5 -5 -5 -5 -5 -5 -4 -4 -3 -3 -3 -3 -3 -2 -2 -2 -2 -1 -1 -1 -1 ------- Run | Yrd Mat Sub Mat Gar Mat Gar Fac Gar Fac Was Fac Ext Cet Arc Hub Gar Fac Was Fac Gar Fac Gar Fac Gar Res Gar Res Tes Gar Res Qua Sec Gar Acc Gar Acc Com Combat Hostiles Destroyed 774 | . 19 8 28 19 21 17 13 1 4 . 8 13 2 2 3 20 50 4 32 22 37 23 21 44 13 34 18 26 30 22 21 24 22 29 34 40 50 Melee 5 | . . . 2 . . . . . . . . . . . . 1 2 . . . . . . . . . . . . . . . . . . . . Guns 130 | . . 1 13 19 21 9 13 1 4 . 8 13 . 2 3 7 . . . . . . 4 . . . . . . . . . 1 . . 7 4 Cannons 556 | . 17 5 12 . . 1 . . . . . . . . . 9 43 4 32 22 37 23 15 41 13 33 18 26 28 22 20 23 19 23 28 26 16 AOE 73 | . 2 2 1 . . 6 . . . . . . . . . 3 5 . . . . . 2 3 . . . . . . . 1 2 6 5 7 28 Classes Destroyed 34 | 2 5 4 7 . . 1 . 1 2 . 2 . . . . 2 . 1 . . . 2 . . 1 . . . . . 2 1 . . 1 . . Worker 25 | . . . 3 . 1 . 3 . . . 2 1 . . . . 3 . 1 . 1 . 1 . . . 2 2 . 1 . 1 . 1 . 2 . Builder 15 | . 2 . . . 1 . . . . . . . . . . . 1 . 1 . . . 1 . 1 . 1 1 . 2 2 . . . . 2 . Tunneler 6 | 4 . . . . 2 . . . . . . . . . . . . . . . . . . . . . . . . . . . . . . . . Hauler 22 | . 2 . 3 . 3 . 1 . . . . 3 . . . . 2 . . . . . 1 . . . . . . 1 1 2 . 2 . 1 . Recycler 23 | 1 3 . 2 . . . 3 . 1 . 1 1 . . . . 3 . 1 . 2 . 1 . . . 1 . . . . . . 1 . 2 . Carrier 1 | . . . 1 . . . . . . . . . . . . . . . . . . . . . . . . . . . . . . . . . . Mechanic 6 | . . . 1 . . . . . . . . 1 . . . . . . 1 . . . . . 1 . . . . . . . . 1 . 1 . Operator 25 | . 2 . 1 . 3 . . . . . . . . 9 . . 1 . 2 . 3 . . . . . . 2 . . . 2 . . . . . Drone 3 | . . . . . . . . 1 . . . . . . . . . . . . . . . . . . . . . . . 2 . . . . . Watcher 25 | . 2 . 2 . 3 1 2 . 1 . 1 . 2 . . . 1 . . 2 4 . . . . . 1 . . . 1 1 . . . 1 . Swarmer 147 | . . 1 . . 2 . 2 . . . 1 3 . . . 4 11 . 4 3 6 3 7 21 2 16 9 5 13 3 . . . 14 5 10 2 Cutter 18 | . . . 1 . . . . . . . . . . . . 3 2 . . 2 . . . . . 2 . . . . . . 4 . 3 . 1 Grunt 241 | . 19 . 19 9 11 10 7 . 1 . 6 3 . . 1 5 19 . 5 5 8 12 7 12 6 6 1 6 7 4 3 6 10 4 13 1 15 Brawler 22 | . . . 1 1 1 . . . . . . . . . . 1 2 . 3 . . 4 . . . . 1 . 3 . . . 1 1 2 . 1 Duelist 11 | . . . 1 . 1 . . . . . . . . . . . 1 . . . . 1 . . . . . . 1 1 1 . 2 1 . . 1 Protector 6 | . . . . . . . . . . . . . . . . 1 1 . . . . . . . . . . . . . . . . . . . 4 Researcher 1 | . . . . . . . . . . . . . . . . . . . . . . . . . . . . . . . . 1 . . . . . Sentry 76 | . . 1 5 5 5 3 . . . . . 5 . 2 2 1 3 . 7 9 5 . 3 2 . 2 1 4 2 1 . . 1 3 . 3 1 Demolisher 1 | . . . . . . . . . . . . . . . . 1 . . . . . . . . . . . . . . . . . . . . . Specialist 11 | . . . . . . . . . . . . . . . . 2 . . . 1 2 . . . . . . . 2 . 3 . . . . . 1 Hunter 77 | . . . 2 4 1 2 2 . 2 . . . . . . 2 2 . 8 . 5 . . . 2 4 1 . 1 9 2 4 2 1 2 8 11 Programmer 125 | . . . . . . 2 2 . . . . . . . . 3 10 . 5 2 11 2 4 7 1 2 5 11 3 4 10 7 1 2 5 16 10 Heavy 3 | . . . . . . . . . . . 1 . . . . . . . . . . . . . . . . . . . . . . 1 . 1 . Behemoth 18 | . . . . . . . . . . . 1 2 . . . . . . . . 1 . . 2 1 2 . . . . . 2 2 2 1 1 1 Compactor 4 | . . . . . . . . . . . . . . . . . . 4 . . . . . . . . . . . . . . . . . . . Cetus Guard 2 | . . . . . . . . . . . . . 2 . . . . . . . . . . . . . . . . . . . . . . . . Combat Programmer 2 | . . . . . . . . . . . . . . . . . . . . . . . . . . . . . . . . . . . . . 2 Striker 2 | . . . . . . . . . . . . . . . . . . . . . . 2 . . . . . . . . . . . . . . . Executioner 3 | . . . . . . . . . . . . . . . . . . . . . . 1 1 . . . . . . . . 1 . . . . . Alpha 7 3 | . . . . . . . . . . . . . . . . . . . . . . . . . . . . . . . 1 2 . . . . . Fortress 1 | . . . . . . . . . . . . . . . . . . . . . . . . . . . . . . . 1 . . . . . . Artisan 2 | . . 2 . . . . . . . . . . . . . . . . . . . . . . . . . . . . . . . . . . . Subdweller 6 | . . 6 . . . . . . . . . . . . . . . . . . . . . . . . . . . . . . . . . . . Assembled 1 | . . . . . . . . . 1 . . . . . . . . . . . . . . . . . . . . . . . . . . . . Fireman 3 | . . . . . . . . . . . . . . . . . . . . . . . . . . . . . . . . . . . 3 . . Infiltrator 1 | . . . . . . . . . 1 . . . . . . . . . . . . . . . . . . . . . . . . . . . . Revision 1 | . . . . . . . . . . . . . . . . . . . . . . . . . 1 . . . . . . . . . . . . Best Kill Streak 23 | 3 9 2 6 4 8 7 6 1 3 . 2 4 2 3 1 3 5 3 5 5 4 6 6 10 3 7 7 5 8 8 3 4 5 10 11 7 23 Combat Bots Only 23 | . 5 2 4 4 5 7 3 1 2 . 1 4 1 1 1 3 5 3 4 5 4 6 5 10 3 7 7 5 8 6 3 4 5 10 11 6 23 Max Kills in Single Turn 8 | 1 2 1 2 2 2 2 2 1 1 . 1 2 1 1 1 4 4 1 1 1 2 2 3 3 1 2 2 2 2 1 1 1 2 5 3 4 8 Gunslinging 1 | . . . . 1 . . . . . . . . . . . 1 . . . . . . . . . . . . . . . . . . . . . Exploded 8 | . 2 1 1 . . 2 . . . . . . . . . 3 3 . . . . . 2 3 . . . . . . . 1 2 5 3 4 8 Melee 1 | . . . 1 . . . . . . . . . . . . 1 1 . . . . . . . . . . . . . . . . . . . . Uniques/NPCs Destroyed 2 | . . . . . . . . . . . . . . . . . . . . . . . . . . . . . . . . . . . . . 2 MAIN.C Shell (-1/Command) MAIN.C (-1/Command) Combat | -11 -10 -10 -8 -8 -8 -8 -7 -7 -6 -6 -6 -6 -6 -6 -6 -6 -5 -5 -5 -5 -5 -5 -4 -4 -3 -3 -3 -3 -3 -2 -2 -2 -2 -1 -1 -1 -1 -------- Run | Yrd Mat Sub Mat Gar Mat Gar Fac Gar Fac Was Fac Ext Cet Arc Hub Gar Fac Was Fac Gar Fac Gar Fac Gar Res Gar Res Tes Gar Res Qua Sec Gar Acc Gar Acc Com Hostile Shots Fired 3384 | . 38 15 101 63 57 84 60 7 23 . 27 81 14 10 45 124 202 . 128 93 183 92 62 119 44 102 35 86 58 75 133 140 51 134 157 154 587 Missed 1121 | . 11 5 31 17 11 27 21 4 7 . 10 32 8 2 16 29 61 . 32 17 69 29 19 38 12 19 14 24 23 27 55 41 22 60 47 47 234 Hits 2263 | . 27 10 70 46 46 57 39 3 16 . 17 49 6 8 29 95 141 . 96 76 114 63 43 81 32 83 21 62 35 48 78 99 29 74 110 107 353 Melee 21 | . . . 1 . . . . 3 . . . . . . . 8 1 . . 1 . 4 . . . 2 . . . . . . 1 . . . . Projectile 2242 | . 27 10 69 46 46 57 39 . 16 . 17 49 6 8 29 87 140 . 96 75 114 59 43 81 32 81 21 62 35 48 78 99 28 74 110 107 353 AOE 22 | . . . . . . . 5 . . . . . . . . 3 2 . . 1 . . . . 1 2 . . . . . 3 2 . 1 1 1 Critical Strikes 118 | . . . 4 3 2 1 2 1 1 . . . 1 1 . 6 10 . 6 4 9 2 . 2 3 5 3 6 1 . 5 16 2 5 3 4 10 Actively Blocked 4 | . . . . . . . . . . . . . . . . . . . . . . . . . . . . . . . . . . . . . 4 Part Disruptions 14 | . . . . . . . . . . . . . . . . 4 . . . . . . . . . . . 1 . . . 5 . . 1 2 1 Damage Taken 26417 | . 339 340 1168 625 525 729 592 102 218 . 211 269 88 127 308 1343 2268 . 827 765 1156 994 487 837 387 1162 280 490 497 611 683 1411 375 1042 878 1617 2666 Core 1820 | . 52 80 142 74 88 81 35 . 17 . 16 25 . 29 27 75 182 . 83 32 56 47 36 22 65 121 . 64 58 18 4 59 14 81 47 37 53 Absorbed by Shields 14970 | . . . . . 85 136 154 . . . 152 88 45 . . 261 391 . 542 696 854 502 515 882 403 818 271 458 475 591 313 1358 361 1001 827 1234 1557 Reduced by Siege Mode 416 | . . . . . . . . . . . . . . . . . . . 2 34 14 89 5 21 10 81 1 27 . . 23 41 2 52 14 . . Redirected to Shielding 210 | . . . . . . . . . . . . . . . . . . . . . . . . . . . . . . . 33 . . . . . 177 Ignored by Resistances 8498 | . . . . . . . . 31 103 . 102 85 52 74 . 429 396 . 458 218 288 . . . . . 75 520 . 17 237 163 119 . 624 109 4398 Regen/Repaired (Parts) 3616 | . . . . . 127 . . . 101 44 75 . . . . . 780 . . . 224 . 22 46 . . 173 353 . . . 1362 . . . 27 282 Core Remaining (%) 83 | 100 . 70 . . . 55 . 95 . . . . . . . 80 . . . . . 90 . 95 . . . . 78 . . . 81 . . . 88 Volleys Fired 2795 | 6 49 58 76 55 72 41 58 16 19 10 51 51 9 21 9 101 199 34 114 90 144 103 63 100 54 86 72 91 71 73 74 152 92 121 93 170 97 Largest 3 | 2 2 2 3 3 3 3 3 3 3 1 3 3 1 2 3 3 1 1 1 1 1 1 2 1 1 1 1 1 1 1 2 1 2 2 1 3 2 Hottest 240 | 60 66 120 154 75 75 75 75 111 111 61 86 75 240 70 105 105 70 60 60 60 60 60 96 60 60 60 60 60 60 60 180 60 105 105 70 173 115 Shots Fired 3698 | 12 98 79 200 157 214 93 150 42 35 10 105 141 9 24 19 128 202 34 114 88 141 104 77 101 54 86 72 93 71 73 77 156 94 125 93 212 115 Gun 1220 | 12 . 38 97 157 214 80 138 42 28 10 92 135 1 16 15 54 . . . . 1 . 24 . . . . . . . . . 2 4 . 41 19 Cannon 1987 | . 98 35 99 . . . . . . . . . . . . 30 158 28 112 76 108 82 38 95 43 80 50 84 60 55 66 134 75 96 74 144 67 Launcher 57 | . . 6 4 . . 11 . . 1 . . . 6 . . 1 2 . . . . . 2 1 . . . . . . . . 1 2 2 3 15 Special 434 | . . . . . . 2 12 . 6 . 13 6 2 8 4 43 42 6 2 12 32 22 13 5 11 6 22 9 11 18 11 22 16 23 17 24 14 Kinetic 3051 | 9 98 38 119 157 214 80 138 36 16 . 81 135 . 16 15 84 158 28 112 76 109 82 62 95 43 80 50 84 60 55 65 134 77 100 74 185 86 Thermal 190 | . . 35 77 . . . . 6 12 10 11 . 1 7 . 18 . . . . . 12 . . . . . . . . 1 . . . . . . Explosive 36 | . . 6 . . . . . . 1 . . . . . . 1 2 . . . . . 2 1 . . . . . . . . 1 2 2 3 15 Electromagnetic 24 | 3 . . 4 . . 11 . . . . . . 6 . . . . . . . . . . . . . . . . . . . . . . . . Robot Hit Streak 65 | 5 16 10 12 18 17 26 42 16 20 17 14 21 2 20 12 17 18 63 32 52 17 31 38 35 46 33 30 40 50 45 65 34 42 30 33 44 23 Robot Miss Streak 15 | 1 2 2 4 5 3 1 2 1 1 1 3 4 1 1 1 3 3 1 15 4 5 6 1 5 1 4 2 1 2 2 2 4 2 4 3 5 5 Penetration Max 2 | . . . . . . . . . . . . . . 1 1 . . . . . . . 2 . . . . . . . . . . . . 1 2 Secondary Targets 12 | . . . 1 3 1 2 . . 2 . . 2 . . . 1 . . . . . . . . . . . . . . . . . . . . . Max Gunslinging Chain 2 | . . . 1 2 1 1 . . 1 . . 1 . . . 1 . . . . . . . . . . . . . . . . . . . . . Shots Hit Robots 2769 | 7 62 30 114 129 146 83 113 18 31 9 78 112 2 35 16 99 155 34 100 72 116 87 63 68 46 68 50 73 61 66 63 121 58 88 73 122 101 Core Hits 1819 | 6 32 17 65 57 58 39 44 10 18 4 37 55 5 15 6 37 59 12 78 49 77 49 40 69 38 54 34 61 60 59 55 100 56 76 65 110 113 Critical Kills 10 | . . . . 1 3 . 1 . . . . . . 1 . 3 . . . . . . . . . . . . . . . . . . . . 1 Critical Parts Destroyed 20 | . . . . . 5 1 1 . . . 1 1 . 1 2 6 . . . . . . 1 . . . . . . . . . . . . . 1 Critical Strikes 139 | . 5 1 2 1 8 2 2 . 2 . 3 1 . 2 2 12 16 1 3 5 10 1 4 2 4 2 2 2 1 7 9 7 4 1 3 4 8 Burn 5 | . . . 1 . . . . . 2 . 2 . . . . . . . . . . . . . . . . . . . . . . . . . . Destroy 32 | . . 1 . 1 8 1 2 . . . 1 1 . 2 2 10 . . . . . . 1 . . . . . . . . . . . . . 2 Blast 101 | . 5 . 1 . . . . . . . . . . . . 2 16 1 3 5 10 1 3 2 4 2 2 2 1 7 9 7 4 1 3 4 6 Sever 1 | . . . . . . 1 . . . . . . . . . . . . . . . . . . . . . . . . . . . . . . . Melee Attacks 121 | . . . 3 22 4 23 . . . . 6 . . 13 3 23 13 . . . . . . . . . . . . . 4 . . . 2 2 3 Kinetic 11 | . . . . . . . . . . . . . . . . . . . . . . . . . . . . . . . 4 . . . 2 2 3 Impact 6 | . . . . . . . . . . . . . . . . 6 . . . . . . . . . . . . . . . . . . . . . Slashing 104 | . . . 3 22 4 23 . . . . 6 . . 13 3 17 13 . . . . . . . . . . . . . . . . . . . . Piercing . | . . . . . . . . . . . . . . . . . . . . . . . . . . . . . . . . . . . . . . Sneak Attacks 12 | . . . 1 . . . . . . . . . . 11 . . . . . . . . . . . . . . . . . . . . . . . Combat Hostiles . | . . . . . . . . . . . . . . . . . . . . . . . . . . . . . . . . . . . . . . Follow-up Attacks . | . . . . . . . . . . . . . . . . . . . . . . . . . . . . . . . . . . . . . . Damage Inflicted 137538 | 104 1774 761 2946 2480 2637 2594 1857 580 695 180 1186 1895 685 1579 318 3499 10186 2474 6022 4424 5907 4668 3594 5905 2364 4609 2836 4803 3797 3334 4092 7978 3857 7211 5259 7436 11012 Guns 16691 | 104 . 38 1145 1497 2634 1053 1830 326 432 180 1186 1895 . 474 318 772 . . . . . . 642 . . . . . . . . . 90 90 . 1348 637 Cannons 100659 | . 1564 568 1372 . . 92 . . . . . . . . . 1644 9175 2474 6022 4424 5887 4602 2549 5476 2364 4609 2727 4775 3797 3266 3899 7923 3333 5808 3918 4599 3792 Explosions 14852 | . 204 155 274 . . 621 . 254 263 . . . 685 . . 218 626 . . . . . 403 429 . . . . . . . . 434 1274 1258 1229 6525 Melee 4409 | . . . 131 983 . 828 . . . . . . . 1066 . 764 357 . . . . . . . . . . . . . 139 . . . 83 . 58 Ramming 721 | . 6 . 24 . 3 . 27 . . . . . . . . . 28 . . . 20 . . . . . 109 28 . 68 54 55 . 39 . 260 . Kinetic 115264 | 91 1564 38 1574 1497 2634 1053 1830 326 212 . 1026 1895 . 474 318 2369 9130 2474 6022 4424 5887 4602 3191 5476 2364 4609 2727 4775 3797 3266 4038 7923 3423 5898 4001 5849 4487 Thermal 2547 | . . 568 1090 . . 31 . . 220 180 160 . . 39 . 148 45 . . . . 66 . . . . . . . . . . . . . . . Explosive 13272 | . 204 155 . . . . . 254 263 . . . . . . 218 626 . . . . . 403 429 . . . . . . . . 434 1274 1258 1229 6525 Electromagnetic 1415 | 13 . . 127 . . 590 . . . . . . 685 . . . . . . . . . . . . . . . . . . . . . . . . Impact . | . . . . . . . . . . . . . . . . . . . . . . . . . . . . . . . . . . . . . . Slashing 4129 | . . . 131 983 . 828 . . . . . . . 1066 . 764 357 . . . . . . . . . . . . . . . . . . . . Piercing . | . . . . . . . . . . . . . . . . . . . . . . . . . . . . . . . . . . . . . . Entropic 98 | . . . . . . . . . . . . . . . . . . . . . . . . . . . . . . . . . . . . 98 . Phasic 92 | . . . . . . 92 . . . . . . . . . . . . . . . . . . . . . . . . . . . . . . . Highest Corruption 48 | . . . 3 3 20 20 2 1 . . . . 5 10 . 7 5 5 13 38 43 48 2 4 . 1 2 3 9 1 12 12 3 . 2 1 1 Average Corruption 10 | . . . 2 3 10 8 1 1 . . . . 5 6 . 4 3 5 9 22 39 46 2 3 . 1 2 2 6 1 7 8 1 . 1 1 1 Corruption Purged 33 | . . . . . . . . . . . . . . 30 . . . . . . . . . . . . . 3 . . . . . . . . . Corruption Blocked . | . . . . . . . . . . . . . . . . . . . . . . . . . . . . . . . . . . . . . . Effects 687 | . . . 11 22 47 15 3 6 . . . . 5 14 . 15 47 12 48 67 131 62 2 20 . 4 1 13 9 . 49 61 6 . 2 15 . Message Errors 144 | . . . 1 4 11 7 1 3 . . . . 1 1 . 2 8 6 18 14 24 9 1 2 . 1 . 3 1 . 11 10 2 . 1 2 . Matter Fused 143 | . . . 2 5 8 2 1 1 . . . . 3 1 . 3 10 2 7 11 31 15 1 5 . 1 1 4 2 . 7 17 1 . . 2 . Heat Flow Errors 80 | . . . 2 4 3 1 1 1 . . . . 1 2 . 1 1 . 7 9 22 2 . 6 . . . 1 1 . 4 5 2 . . 4 . Energy Discharges 85 | . . . 2 2 5 3 . . . . . . . 6 . 2 8 . 6 9 11 7 . 1 . 1 . . 3 . 9 6 1 . . 3 . Parts Rejected 6 | . . . . . 1 . . . . . . . . . . . . . . . 1 . . 1 . . . . . . 1 1 . . . 1 . Parts Fused 9 | . . . . . . 1 . . . . . . . . . . 2 . 2 . 1 1 . 1 . . . . . . . 1 . . . . . Data Loss (minor) 84 | . . . 3 5 7 1 . . . . . . . 1 . 3 7 2 4 6 13 11 . 1 . . . 2 1 . 7 9 . . 1 . . Data Loss (major) 37 | . . . 1 . 3 . . 1 . . . . . 2 . 2 4 1 2 5 4 . . 1 . 1 . . . . 3 5 . . . 2 . Misfires 39 | . . . . 1 4 . . . . . . . . 1 . . 4 . 1 3 6 8 . 1 . . . 2 . . 2 5 . . . 1 . Alerts 18 | . . . . . . . . . . . . . . . . . 2 1 . 4 2 . . 1 . . . 1 1 . 5 1 . . . . . Misdirections 8 | . . . . . . . . . . . . . . . . . . . . 1 6 1 . . . . . . . . . . . . . . . Weapon Failures 34 | . . . . 1 5 . . . . . . . . . . 2 1 . 1 5 10 8 . . . . . . . . . 1 . . . . . Overload Shots 1 | . . . . . . . . . . . . . 1 . . . . . . . . . . . . . . . . . . . . . . . . Overflow Damage 4482 | . 64 . 108 57 . 16 . . 6 . . . 54 163 . 295 1285 . 44 133 287 98 83 125 52 111 76 108 93 27 109 89 73 209 55 369 293 Projectiles 3057 | . 23 . 5 . . . . . . . . . . . . 272 1182 . 44 133 287 98 83 124 52 111 61 108 93 27 109 89 . 38 55 50 13 Explosions 990 | . 41 . 38 . . 16 . . 6 . . . 54 . . 23 48 . . . . . . 1 . . . . . . . . 73 171 . 239 280 Melee 435 | . . . 65 57 . . . . . . . . . 163 . . 55 . . . . . . . . . 15 . . . . . . . . 80 . Knockbacks 444 | . 16 . 7 . . . . . . . . . . . . 7 34 . 26 8 23 24 15 27 12 14 13 25 16 23 29 35 14 13 24 18 21 Impact 11 | . . . 1 . . . . . . . . . . . . . . . . . . . . . . . 1 . . 2 2 1 . . . 4 . Kinetic 408 | . 13 . 6 . . . . . . . . . . . . 7 33 . 23 8 22 23 14 27 12 13 11 24 14 19 26 31 13 13 24 14 18 Secondary 25 | . 3 . . . . . . . . . . . . . . . 1 . 3 . 1 1 1 . . 1 1 1 2 2 1 3 1 . . . 3 Self-Inflicted Damage 464 | . . . 2 . 1 7 7 . 47 . . . . . . 55 147 . 81 . 104 . 13 . . . . . . . . . . . . . . Shots 10 | . . . . . . 1 . . 1 . . . . . . 1 4 . 1 . 1 . 1 . . . . . . . . . . . . . . Rammed 40 | . 6 . 2 . 1 . 3 . . . . . . . . . 4 . . . 2 . . . . . 4 2 . 5 4 1 . 1 . 4 1 Targets Rammed 43 | . 6 . 3 . 1 . 3 . . . . . . . . . 4 . . . 2 . . . . . 4 2 . 6 4 1 . 1 . 5 1 Kicked . | . . . . . . . . . . . . . . . . . . . . . . . . . . . . . . . . . . . . . . Crushed 3 | . . . 1 . . . . . . . . . . . . . . . . . . . . . . . . . . 1 . . . . . 1 . Highest Temperature 611 | . 96 186 426 314 286 264 211 397 230 126 268 260 235 193 72 377 381 333 384 356 398 349 249 328 92 232 118 337 333 163 226 332 241 . 126 611 400 Average Temperature 93 | . 26 42 138 91 79 70 40 111 77 55 59 70 79 77 30 115 111 181 118 120 101 124 64 71 37 76 47 77 60 62 61 81 108 . 16 114 66 Received Heat Transfer 3857 | . 192 33 540 189 165 174 74 . 47 . 21 91 13 9 30 291 228 . 45 150 178 128 54 257 35 85 14 48 46 16 12 275 42 16 207 16 136 Effects 53 | . . . 6 1 2 . . 2 . . . 3 . . . 1 8 2 2 4 6 . 1 . . . . 1 . . 1 1 . . . 12 . Shutdowns 8 | . . . 1 . . . . 1 . . . . . . . . 1 . 1 1 1 . . . . . . . . . . . . . . 2 . Energy Bleed 18 | . . . . 1 2 . . 1 . . . . . . . . 4 2 1 2 1 . 1 . . . . . . . 1 . . . . 2 . Interference 16 | . . . 4 . . . . . . . . 3 . . . . 3 . . . 3 . . . . . . . . . . . . . . 3 . Short Circuit 3 | . . . . . . . . . . . . . . . . 1 . . . . . . . . . . . 1 . . . . . . . 1 . Damage (minor) 4 | . . . 1 . . . . . . . . . . . . . . . . 1 1 . . . . . . . . . . 1 . . . . . Damage (major) 4 | . . . . . . . . . . . . . . . . . . . . . . . . . . . . . . . . . . . . 4 . Siege Activations 71 | . . . . . . . . . . . . . . . . 1 1 1 3 4 5 4 2 3 2 5 3 6 1 1 7 7 3 1 6 5 . Total Turns 926 | . . . . . . . . . . . . . . . . 16 14 49 90 48 45 92 10 24 9 97 17 62 9 7 107 98 14 41 51 26 . Longest Duration 75 | . . . . . . . . . . . . . . . . 16 14 49 75 14 17 33 7 16 6 52 8 17 9 7 47 37 7 41 12 9 . Martial Activations . | . . . . . . . . . . . . . . . . . . . . . . . . . . . . . . . . . . . . . . Shielding Activations . | . . . . . . . . . . . . . . . . . . . . . . . . . . . . . . . . . . . . . . Robots Disrupted . | . . . . . . . . . . . . . . . . . . . . . . . . . . . . . . . . . . . . . . Combat Hostiles . | . . . . . . . . . . . . . . . . . . . . . . . . . . . . . . . . . . . . . . Robots Corrupted 11 | . . . . . . 1 . . . . . . 3 . . . . . . . . . . . . . 2 . 2 1 . 1 . . . 1 . Combat Hostiles 5 | . . . . . . 1 . . . . . . 2 . . . . . . . . . . . . . . . 2 . . . . . . . . Parts Fried 19 | . . . . . . 2 . . 1 . . . 2 . . . . . . . . . 1 . 1 . 3 . 2 1 . 4 . . . 2 . Impact Corruptions 14 | . . . 3 . . . . . . . . . . . . . . . . . . . . . . . 2 . 3 1 . 1 . . . 4 . Robots Melted . | . . . . . . . . . . . . . . . . . . . . . . . . . . . . . . . . . . . . . . Combat Hostiles . | . . . . . . . . . . . . . . . . . . . . . . . . . . . . . . . . . . . . . . Parts Melted 13 | . . 1 3 . . 1 . . 3 . 1 1 . . . 1 . . . . 1 . . . . . . . . . . . . . . 1 . Heat Transferred 5166 | . . 1036 1913 . . 50 . . 555 333 444 . . 150 . 398 37 . . . . 250 . . . . . . . . . . . . . . . Parts Sabotaged . | . . . . . . . . . . . . . . . . . . . . . . . . . . . . . . . . . . . . . . Parts Stolen . | . . . . . . . . . . . . . . . . . . . . . . . . . . . . . . . . . . . . . . Parts Stripped 65 | . . . . . . . . . . . . . . . . . . . . . . . . . . . . . . . 18 . . . 19 . 28 Power Chain Reactions 3 | . . . 1 . . 2 . . . . . . . . . . . . . . . . . . . . . . . . . . . . . . . Alert | -11 -10 -10 -8 -8 -8 -8 -7 -7 -6 -6 -6 -6 -6 -6 -6 -6 -5 -5 -5 -5 -5 -5 -4 -4 -3 -3 -3 -3 -3 -2 -2 -2 -2 -1 -1 -1 -1 ------- Run | Yrd Mat Sub Mat Gar Mat Gar Fac Gar Fac Was Fac Ext Cet Arc Hub Gar Fac Was Fac Gar Fac Gar Fac Gar Res Gar Res Tes Gar Res Qua Sec Gar Acc Gar Acc Com Maximum Alert Level 4 | . 1 . 3 3 2 3 2 2 1 . 2 2 1 1 2 3 3 1 3 4 3 3 2 4 3 4 3 1 4 3 2 2 3 3 3 2 4 Low Security (%) 26 | 100 60 . 37 . . . 67 35 58 100 7 47 36 84 33 14 33 44 37 . 15 . 7 . . . . 32 . . 73 45 . . . 58 . Level 1 23 | . 39 . 10 . 41 9 26 45 41 . 54 50 63 15 59 10 21 55 . . 27 . 42 . 7 17 51 67 16 . 9 31 24 20 . 18 48 Level 2 26 | . . . 44 33 58 61 6 19 . . 37 2 . . 7 43 35 . 26 . 44 42 50 28 5 17 33 . 14 33 16 23 21 50 36 23 26 Level 3 18 | . . . 7 66 . 28 . . . . . . . . . 31 9 . 35 69 12 57 . 21 87 39 15 . 17 66 . . 54 29 63 . 5 Level 4 4 | . . . . . . . . . . . . . . . . . . . . 29 . . . 49 . 25 . . 51 . . . . . . . 19 Level 5 . | . . . . . . . . . . . . . . . . . . . . . . . . . . . . . . . . . . . . . . High Security . | . . . . . . . . . . . . . . . . . . . . . . . . . . . . . . . . . . . . . . Max Security . | . . . . . . . . . . . . . . . . . . . . . . . . . . . . . . . . . . . . . . Sterilizations 1 | . . . . . . . . . 1 . . . . . . . . . . . . . . . . . . . . . . . . . . . . Peak Influence 1433 | 10 272 . 791 1046 608 855 448 499 329 24 589 438 318 243 425 830 906 295 894 1226 779 890 663 1433 869 1207 908 388 1403 1036 464 577 950 830 987 600 450 Initial 805 | . . . . 499 509 382 448 41 261 24 . 190 109 105 31 79 386 295 81 621 643 417 466 446 805 297 678 200 267 789 291 18 255 569 417 592 381 Average 452 | 3 145 . 344 795 451 620 193 293 144 2 358 169 218 159 243 504 362 210 494 1032 435 705 400 1023 737 792 462 249 946 806 213 234 634 582 763 183 363 Influence Increases 30375 | 25 650 40 1415 557 723 663 462 458 245 . 1111 744 369 414 753 877 2195 2 1406 715 1308 523 1320 1007 382 970 928 844 1196 641 763 1388 695 1089 710 1267 1520 Destroy 0b10 Robot/C 15030 | . 380 40 680 380 420 340 260 20 100 . 520 400 160 140 280 440 1220 . 640 375 645 345 540 675 240 555 435 390 582 312 252 576 288 528 456 636 780 Destroy 0b10 Robot/NC 805 | 25 55 . 60 15 65 15 45 5 15 . 45 55 10 45 . 20 65 . 30 8 40 . 24 . 4 . 24 24 . 12 12 21 . 15 . 30 21 Destroy Leader 2414 | . 98 . 150 20 122 30 66 . 12 . 136 34 . 10 50 50 228 . 140 . 168 24 130 48 32 56 90 48 54 68 34 90 30 86 36 160 114 Allied During Kill 3634 | . . . 33 . . . . 10 68 . 315 194 168 195 262 26 106 . . 2 24 2 160 7 16 117 235 2 391 70 16 485 46 199 29 188 268 Successful Hack 720 | . . . 17 12 20 . 45 14 . . 12 30 . . . 34 79 . 29 . 40 8 116 . 58 11 4 44 . 32 41 23 . 32 19 . . Select Force Hacks 230 | . 60 . 30 . 30 . 30 . . . 30 . . . 50 . . . . . . . . . . . . . . . . . . . . . . Disable Machine 1467 | . 30 . 120 . 30 . . . 45 . 45 15 15 15 90 30 240 . 105 . 72 24 96 24 . 36 36 72 21 27 63 117 27 9 . 27 36 Anti-Garrison Action 1869 | . . . . 100 . 150 . 350 . . . . . . . 250 . . . 213 . 76 . 151 . 151 . . 128 . . . 150 . 150 . . Destroy Structure 2602 | . 27 . 29 . 6 68 1 59 5 . 8 16 1 9 21 27 212 2 220 117 152 44 242 90 20 44 104 54 20 60 46 76 154 184 20 226 238 Lose Combat Pursuer 375 | . . . . 30 30 60 15 . . . . . 15 . . . 45 . . . . . 12 12 12 . . . . . 45 . . 36 . . 63 Miscellaneous 1229 | . . . 296 . . . . . . . . . . . . . . . 242 . 167 . . . . . . 210 . 60 254 . . . . . . Influence Decreases 29068 | 25 422 268 647 279 1181 396 1258 18 673 71 722 937 301 587 730 255 2087 729 635 377 1937 230 1572 212 1419 159 1778 845 149 1526 1249 1079 86 1517 245 1657 810 Entered New Map 8493 | . . 110 . 269 537 206 407 18 238 47 . 199 87 159 60 35 350 549 36 267 583 180 424 192 628 99 529 157 89 614 227 14 86 381 105 395 216 Time Decay 10771 | 25 412 138 444 . 494 . 502 . 150 24 452 398 214 368 180 . 638 180 559 . 624 . 628 . 386 . 559 518 . 392 607 555 . 446 . 584 294 Lost Part 452 | . 10 . 13 10 . 20 10 . . . 10 . . . . 30 69 . 40 10 30 30 . . 20 40 . . . . 30 10 . 10 . 10 50 Lost Ally 2328 | . . 20 40 . . 20 40 . 10 . 110 40 . 60 40 40 330 . . 100 100 20 70 20 10 20 190 20 60 20 110 200 . 80 140 168 250 Purge Threat 7024 | . . . 150 . 150 150 299 . 275 . 150 300 . . 450 150 700 . . . 600 . 450 . 375 . 500 150 . 500 275 300 . 600 . 500 . Squads Dispatched 168 | . 6 . 8 . 3 . 12 . 1 . 11 . . 1 5 . 22 . 7 . 15 . 9 . 2 . 6 4 . 5 6 10 . 14 . 19 2 Investigation 44 | . 4 . 6 . 1 . 5 . . . 6 . . 1 1 . 4 . 3 . 1 . 4 . 1 . 1 1 . 2 1 1 . 1 . . . Extermination 46 | . . . . . . . 3 . . . 1 . . . . . 6 . 3 . 4 . 3 . . . 3 3 . 1 4 4 . 2 . 8 1 Reinforcement 50 | . 2 . 1 . 1 . 2 . 1 . 4 . . . 1 . 8 . 1 . 8 . 2 . 1 . 1 . . 1 1 5 . 6 . 3 1 Assault 12 | . . . 1 . 1 . . . . . . . . . . . 3 . . . 2 . . . . . . . . 1 . . . 3 . 1 . Garrison 16 | . . . . . . . 2 . . . . . . . 3 . 1 . . . . . . . . . 1 . . . . . . 2 . 7 . Intercept . | . . . . . . . . . . . . . . . . . . . . . . . . . . . . . . . . . . . . . . Searches Triggered . | . . . . . . . . . . . . . . . . . . . . . . . . . . . . . . . . . . . . . . Construction Impeded 4 | . . . . . . . . . . . 1 . . . . . 1 . . . 1 . . . . . . . . . . . . 1 . . . Haulers Reinforced 9 | . . . . . . . 1 . . . . . . . . . 1 . . . . . 1 . 1 . . . . 1 1 2 . . . 1 . Active Scanning Responses . | . . . . . . . . . . . . . . . . . . . . . . . . . . . . . . . . . . . . . . Cargo Convoy Interrupts 1 | . . . . . . . . . . . . . . . . . 1 . . . . . . . . . . . . . . . . . . . . Stealth | -11 -10 -10 -8 -8 -8 -8 -7 -7 -6 -6 -6 -6 -6 -6 -6 -6 -5 -5 -5 -5 -5 -5 -4 -4 -3 -3 -3 -3 -3 -2 -2 -2 -2 -1 -1 -1 -1 --------- Run | Yrd Mat Sub Mat Gar Mat Gar Fac Gar Fac Was Fac Ext Cet Arc Hub Gar Fac Was Fac Gar Fac Gar Fac Gar Res Gar Res Tes Gar Res Qua Sec Gar Acc Gar Acc Com Distress Signals 41 | . 4 . . . 3 2 1 . . . 1 1 1 . 2 . 3 . . 1 2 . 2 . 2 . . 1 . . 1 1 . 1 . . 12 Communications Jammed 423 | . . . . . . . . . . . . . . . . . . . . . . . . . 47 . 24 120 . 70 2 67 . . . 67 26 Distress Signals 420 | . . . . . . . . . . . . . . . . . . . . . . . . . 47 . 24 120 . 70 2 64 . . . 67 26 Times Spotted 1317 | . 28 8 37 20 34 25 26 1 9 . 39 25 10 21 15 49 97 6 34 48 59 35 39 37 29 35 42 38 45 39 37 71 27 44 46 62 100 Peak Tracking Total 20 | . 4 2 4 4 5 7 4 1 4 . 4 4 5 3 4 9 7 4 4 9 6 6 6 4 5 5 4 6 8 4 4 7 4 14 13 6 20 Tactical Retreats 23 | . . . . 1 1 2 1 . . . . . 1 . . . 3 . . . . . 1 1 1 . . . . . 4 . . 2 . . 5 Traps | -11 -10 -10 -8 -8 -8 -8 -7 -7 -6 -6 -6 -6 -6 -6 -6 -6 -5 -5 -5 -5 -5 -5 -4 -4 -3 -3 -3 -3 -3 -2 -2 -2 -2 -1 -1 -1 -1 ------- Run | Yrd Mat Sub Mat Gar Mat Gar Fac Gar Fac Was Fac Ext Cet Arc Hub Gar Fac Was Fac Gar Fac Gar Fac Gar Res Gar Res Tes Gar Res Qua Sec Gar Acc Gar Acc Com Traps Triggered 59 | . 4 2 4 2 . 1 1 1 2 . . 1 . . . 8 3 . . 3 1 4 3 7 1 2 . . 2 1 . . 1 . . 5 . Indirectly . | . . . . . . . . . . . . . . . . . . . . . . . . . . . . . . . . . . . . . . Trap Hack Attempts . | . . . . . . . . . . . . . . . . . . . . . . . . . . . . . . . . . . . . . . Triggered . | . . . . . . . . . . . . . . . . . . . . . . . . . . . . . . . . . . . . . . Disarmed 6 | . . . . . . . . . . . . . . . . . . . . . . . . . . . . . . . . 6 . . . . . Reprogrammed . | . . . . . . . . . . . . . . . . . . . . . . . . . . . . . . . . . . . . . . Reused . | . . . . . . . . . . . . . . . . . . . . . . . . . . . . . . . . . . . . . . Traps Extracted . | . . . . . . . . . . . . . . . . . . . . . . . . . . . . . . . . . . . . . . Installed . | . . . . . . . . . . . . . . . . . . . . . . . . . . . . . . . . . . . . . . Triggered . | . . . . . . . . . . . . . . . . . . . . . . . . . . . . . . . . . . . . . . Machines | -11 -10 -10 -8 -8 -8 -8 -7 -7 -6 -6 -6 -6 -6 -6 -6 -6 -5 -5 -5 -5 -5 -5 -4 -4 -3 -3 -3 -3 -3 -2 -2 -2 -2 -1 -1 -1 -1 ---------- Run | Yrd Mat Sub Mat Gar Mat Gar Fac Gar Fac Was Fac Ext Cet Arc Hub Gar Fac Was Fac Gar Fac Gar Fac Gar Res Gar Res Tes Gar Res Qua Sec Gar Acc Gar Acc Com Machines Disabled 165 | . 2 1 8 2 2 5 . 3 3 . 3 2 1 1 6 6 16 . 7 4 6 6 8 5 . 5 3 6 7 3 7 14 10 1 5 3 4 Max in Single Turn 6 | . 1 1 2 1 1 2 . 1 1 . . . 1 . 2 1 6 . 5 2 2 1 1 1 . 1 . 1 1 1 1 2 2 1 1 1 1 Garrison Access 13 | . . . . . . . 1 . . . 3 . . . . . 1 . . . . . 2 . 1 . 1 . . 1 1 . . 2 . . . Garrison Relay 32 | . . . . 2 . 2 . 2 . . . . . . . 3 . . . 3 . 2 . 2 . 2 . . 4 . . . 5 . 5 . . Phase Generator 9 | . . . . 1 . 1 . 1 . . . . . . . 1 . . . 1 . . . 1 . . . . 1 . . . . . 1 . 1 Network Hub 2 | . . . . . . . . . . . . . . . 2 . . . . . . . . . . . . . . . . . . . . . . Energy Cycler 2 | . . . . . . . . . . . . . . . . . . . . . . . . . . . . . . . . . . 1 . 1 . Machines Repaired 3 | . . . . . . . . . . . . . . . . . 2 . . . 1 . . . . . . . . . . . . . . . . Machines Dismantled . | . . . . . . . . . . . . . . . . . . . . . . . . . . . . . . . . . . . . . . Machines Sabotaged 1 | . . . . . . . . . . . . . . . 1 . . . . . . . . . . . . . . . . . . . . . . Overloaded Fab Kills . | . . . . . . . . . . . . . . . . . . . . . . . . . . . . . . . . . . . . . . Hacking | -11 -10 -10 -8 -8 -8 -8 -7 -7 -6 -6 -6 -6 -6 -6 -6 -6 -5 -5 -5 -5 -5 -5 -4 -4 -3 -3 -3 -3 -3 -2 -2 -2 -2 -1 -1 -1 -1 --------- Run | Yrd Mat Sub Mat Gar Mat Gar Fac Gar Fac Was Fac Ext Cet Arc Hub Gar Fac Was Fac Gar Fac Gar Fac Gar Res Gar Res Tes Gar Res Qua Sec Gar Acc Gar Acc Com Machines Accessed 174 | . 4 1 7 1 11 2 13 3 1 . 14 6 1 . 4 1 16 . 8 2 6 1 15 . 5 1 4 8 2 5 5 15 2 7 2 . 1 Terminals 100 | . 1 . 4 1 6 2 7 3 . . 6 6 1 . 3 1 7 . 5 2 2 1 8 . 1 1 2 4 2 2 4 10 2 3 2 . 1 Fabricators 16 | . . . . . . . 2 . 1 . 1 . . . . . 3 . 2 . 1 . 3 . 1 . 1 . . 1 . . . . . . . Repair Stations 12 | . 1 . . . 2 . 1 . . . 2 . . . . . 2 . . . 2 . . . . . . 1 . . . 1 . . . . . Recycling Units 7 | . 2 . 1 . 1 . 1 . . . 1 . . . . . 1 . . . . . . . . . . . . . . . . . . . . Scanalyzers 14 | . . . 1 . 1 . . . . . 1 . . . . . 2 . . . . . 1 . 1 . . 2 . 1 . 3 . 1 . . . Garrison Access 24 | . . . 1 . 1 . 2 . . . 3 . . . 1 . 1 . 1 . 1 . 3 . 2 . 1 1 . 1 1 1 . 3 . . . Total Hacks 501 | . 11 1 16 3 23 4 28 3 2 . 26 11 2 . 12 4 69 . 27 5 19 3 66 . 12 1 11 23 8 23 17 47 6 12 5 . 1 Successful 244 | . 5 1 8 1 10 2 12 2 . . 13 7 . . 9 4 39 . 11 . 8 1 40 . 9 1 4 12 1 9 6 20 . 6 2 . 1 Failed 252 | . 5 . 7 2 12 2 15 1 2 . 13 4 2 . 3 . 30 . 16 5 11 2 26 . 3 . 7 11 7 13 11 27 6 6 3 . . Catastrophic 56 | . . . 2 . 3 . 4 . . . 2 . 2 . 2 . 1 . 3 1 3 . 3 . 1 . 2 6 2 3 3 9 2 1 1 . . Database Lockouts 5 | . 1 . 1 . 1 . 1 . . . . . . . . . . . . . . . . . . . . . . 1 . . . . . . . Manual 216 | . 8 . 11 1 13 1 16 1 . . 15 6 1 . 10 4 26 . 20 1 7 1 19 . 4 . 9 8 . 10 3 18 . 3 . . . Terminals 285 | . 5 . 11 3 13 4 16 3 . . 13 11 2 . 10 4 29 . 15 5 3 3 34 . 3 1 8 9 8 7 16 31 6 6 5 . 1 Fabricators 66 | . . . . . . . 6 . 2 . 3 . . . . . 11 . 9 . 6 . 15 . 2 . 2 . . 10 . . . . . . . Repair Stations 42 | . 4 . . . 6 . 3 . . . 3 . . . . . 7 . . . 9 . . . . . . 6 . . . 4 . . . . . Recycling Units 7 | . 2 . 1 . 1 . 1 . . . 1 . . . . . 1 . . . . . . . . . . . . . . . . . . . . Scanalyzers 73 | . . . 3 . 2 . . . . . 3 . . . . . 20 . . . . . 14 . 5 . . 7 . 5 . 11 . 3 . . . Garrison Access 27 | . . . 1 . 1 . 2 . . . 3 . . . 2 . 1 . 3 . 1 . 3 . 2 . 1 1 . 1 1 1 . 3 . . . Terminal Hacks 79 | . 1 1 3 1 3 2 2 2 . . 3 5 . . 5 4 11 . . . . 1 15 . . 1 . 2 1 1 4 7 . 1 2 . 1 Part Schematic 4 | . . . . . . . 1 . . . . . . . . 1 2 . . . . . . . . . . . . . . . . . . . . Robot Schematic 3 | . . . . . . . . . . . 1 . . . . 1 . . . . . . 1 . . . . . . . . . . . . . . Robot Analysis 9 | . 1 . 1 . . . . . . . . . . . . . 4 . . . . . 1 . . . . . . . 2 . . . . . . Prototype ID Bank 1 | . . . 1 . . . . . . . . . . . . . . . . . . . . . . . . . . . . . . . . . . Open Door 9 | . . . . . . . . 1 . . 1 3 . . . . . . . . . . . . . . . 1 . . . 2 . . . . 1 Branch Access Points 1 | . . . . . . . . . . . . . . . . . 1 . . . . . . . . . . . . . . . . . . . . Emergency Access Points 2 | . . . . . . . . . . . . . . . . . . . . . . . 1 . . 1 . . . . . . . . . . . Terminal Index 2 | . . . . . . . . . . . . . . . . . 1 . . . . . 1 . . . . . . . . . . . . . . Fabricator Index 1 | . . . . . . . . . . . . . . . . . . . . . . . 1 . . . . . . . . . . . . . . Scanalyzer Index 2 | . . . . . . . . . . . . . . . . . . . . . . . 1 . . . . . . . . 1 . . . . . Garrison Index 2 | . . . . . . . . . . . . . . . 1 . . . . . . . 1 . . . . . . . . . . . . . . Alert Level 1 | . . . . . . . . . . . . . . . . . . . . . . . 1 . . . . . . . . . . . . . . Unreport Threat 19 | . . . 1 . 1 1 1 . . . 1 2 . . 2 1 1 . . . . . 3 . . . . 1 . 1 . 2 . 1 . . . Locate Traps 4 | . . . . . 1 . . . . . . . . . . . . . . . . . 3 . . . . . . . . . . . . . . Disarm Traps 1 | . . . . . . . . . . . . . . . . . . . . . . . . . . . . . . . . 1 . . . . . Recall Extermination 1 | . . . . . . . . . . . . . . . . . . . . . . . 1 . . . . . . . . . . . . . . Hauler Manifests 1 | . . . . . . . . . . . . . . . . . 1 . . . . . . . . . . . . . . . . . . . . Zone Layout 7 | . . . . . 1 . . . . . . . . . 2 . 1 . . . . . . . . . . . . . 2 1 . . . . . Garrison Registry 6 | . . . . 1 . 1 . 1 . . . . . . . . . . . . . 1 . . . . . . 1 . . . . . 1 . . Patrol Navigation 1 | . . . . . . . . . . . . . . . . 1 . . . . . . . . . . . . . . . . . . . . . Security Stations 1 | . . . . . . . . . . . . . . . . . . . . . . . . . . . . . . . . . . . 1 . . Proto ID Catalog 1 | . . 1 . . . . . . . . . . . . . . . . . . . . . . . . . . . . . . . . . . . Fabricator Hacks 27 | . . . . . . . 3 . . . 2 . . . . . 6 . 5 . 1 . 6 . 1 . 1 . . 2 . . . . . . . Network Status 5 | . . . . . . . 1 . . . . . . . . . . . 1 . . . 1 . 1 . 1 . . . . . . . . . . Load Schematic 12 | . . . . . . . 1 . . . 1 . . . . . 3 . 2 . 1 . 3 . . . . . . 1 . . . . . . . Build 10 | . . . . . . . 1 . . . 1 . . . . . 3 . 2 . . . 2 . . . . . . 1 . . . . . . . Repair Station Hacks 15 | . 2 . . . 3 . 1 . . . . . . . . . 2 . . . 2 . . . . . . 3 . . . 2 . . . . . Scan Component 10 | . 2 . . . 2 . 1 . . . . . . . . . 1 . . . 1 . . . . . . 2 . . . 1 . . . . . Repair 5 | . . . . . 1 . . . . . . . . . . . 1 . . . 1 . . . . . . 1 . . . 1 . . . . . Recycling Unit Hacks 1 | . . . . . . . . . . . . . . . . . 1 . . . . . . . . . . . . . . . . . . . . Retrieve Components 1 | . . . . . . . . . . . . . . . . . 1 . . . . . . . . . . . . . . . . . . . . Scanalyzer 46 | . . . 2 . 1 . . . . . 2 . . . . . 14 . . . . . 10 . 3 . . 5 . 3 . 6 . . . . . Insert Component 17 | . . . 1 . . . . . . . 1 . . . . . 3 . . . . . 4 . . . . 2 . 1 . 5 . . . . . Analyze 15 | . . . 1 . . . . . . . 1 . . . . . 8 . . . . . 4 . . . . . . 1 . . . . . . . Retrieve Study 14 | . . . . . 1 . . . . . . . . . . . 3 . . . . . 2 . 3 . . 3 . 1 . 1 . . . . . Garrison Access Hacks 24 | . . . 1 . 1 . 2 . . . 3 . . . 1 . 1 . 1 . 1 . 3 . 2 . 1 1 . 1 1 1 . 3 . . . Unlock Access 11 | . . . 1 . 1 . 1 . . . . . . . 1 . . . 1 . 1 . 1 . 1 . . 1 . . . 1 . 1 . . . Seal Access 13 | . . . . . . . 1 . . . 3 . . . . . 1 . . . . . 2 . 1 . 1 . . 1 1 . . 2 . . . Unauthorized Hacks 52 | . 2 . 2 . 2 . 4 . . . 3 2 . . 3 . 4 . 5 . 4 . 6 . 3 . 2 1 . 2 1 4 . 2 . . . Terminals 32 | . . . 1 . 1 . 2 . . . 2 2 . . 2 . 3 . 3 . 2 . 3 . 2 . 1 1 . 1 1 3 . 2 . . . Track 3 | . . . . . . . . . . . . . . . 1 . . . . . . . . . . . . . . . . 2 . . . . . Assimilate 3 | . . . . . . . . . . . 1 . . . . . 1 . . . . . 1 . . . . . . . . . . . . . . Botnet 18 | . . . 1 . 1 . 1 . . . 1 2 . . . . 1 . 1 . 1 . 2 . 1 . 1 1 . 1 1 1 . 1 . . . Operators 7 | . . . . . . . 1 . . . . . . . . . 1 . 2 . 1 . . . 1 . . . . . . . . 1 . . . Sabotage 1 | . . . . . . . . . . . . . . . 1 . . . . . . . . . . . . . . . . . . . . . . Fabricators 10 | . . . . . . . 1 . . . . . . . . . . . 2 . 1 . 3 . 1 . 1 . . 1 . . . . . . . Prioritize 5 | . . . . . . . . . . . . . . . . . . . 2 . 1 . 1 . . . . . . 1 . . . . . . . Liberate 1 | . . . . . . . . . . . . . . . . . . . . . . . . . . . 1 . . . . . . . . . . Haulers 3 | . . . . . . . 1 . . . . . . . . . . . . . . . 1 . 1 . . . . . . . . . . . . Recompile 1 | . . . . . . . . . . . . . . . . . . . . . . . 1 . . . . . . . . . . . . . . Repair Stations 2 | . . . . . . . . . . . . . . . . . 1 . . . 1 . . . . . . . . . . . . . . . . Mechanics 2 | . . . . . . . . . . . . . . . . . 1 . . . 1 . . . . . . . . . . . . . . . . Recycling Units 6 | . 2 . 1 . 1 . 1 . . . 1 . . . . . . . . . . . . . . . . . . . . . . . . . . Tunnel 6 | . 2 . 1 . 1 . 1 . . . 1 . . . . . . . . . . . . . . . . . . . . . . . . . . Scanalyzers 1 | . . . . . . . . . . . . . . . . . . . . . . . . . . . . . . . . 1 . . . . . Researchers 1 | . . . . . . . . . . . . . . . . . . . . . . . . . . . . . . . . 1 . . . . . Garrison Access 1 | . . . . . . . . . . . . . . . 1 . . . . . . . . . . . . . . . . . . . . . . Broadcast 1 | . . . . . . . . . . . . . . . 1 . . . . . . . . . . . . . . . . . . . . . . Data Cores Recovered 6 | . . . . . 1 . . . . . 1 . . . . . . . 1 . . . 1 . . . . 2 . . . . . . . . . Used 2 | . . . . . 1 . . . . . 1 . . . . . . . . . . . . . . . . . . . . . . . . . . Hacking Detections 106 | . 2 . 4 1 9 2 8 1 1 . 7 3 2 . 3 . 9 . 7 2 2 . 6 . 2 . 3 4 1 3 3 12 2 5 2 . . Full Trace Events 26 | . 1 . 4 . 2 . 4 . . . 3 . . . . . 4 . 3 . 1 . 1 . . . . . . 1 . 1 . 1 . . . Feedback Events . | . . . . . . . . . . . . . . . . . . . . . . . . . . . . . . . . . . . . . . Feedback Blocked . | . . . . . . . . . . . . . . . . . . . . . . . . . . . . . . . . . . . . . . Robot Schematics Acquired 7 | . . . . . . . . . . . 1 . . . . 1 . . . . . . 1 . . . . . 1 . . 3 . . . . . Robots Built . | . . . . . . . . . . . . . . . . . . . . . . . . . . . . . . . . . . . . . . Authchips . | . . . . . . . . . . . . . . . . . . . . . . . . . . . . . . . . . . . . . . Time . | . . . . . . . . . . . . . . . . . . . . . . . . . . . . . . . . . . . . . . Total Robot Build Rating . | . . . . . . . . . . . . . . . . . . . . . . . . . . . . . . . . . . . . . . Part Schematics Acquired 20 | . . . . . . . 1 . . . 1 . . . . 1 5 . . . . . 4 . . . . . 2 1 . 5 . . . . . Parts Built 11 | . . . . . . . 1 . . . 1 . . . . . 4 . 2 . . . 2 . . . . . . 1 . . . . . . . Authchips 1 | . . . . . . . . . . . . . . . . . . . . . . . 1 . . . . . . . . . . . . . . Time 615 | . . . . . . . 47 . . . 95 . . . . . 184 . 149 . . . 56 . . . . . . 84 . . . . . . . Total Part Build Rating 64 | . . . . . . . 5 . . . 5 . . . . . 23 . 13 . . . 12 . . . . . . 6 . . . . . . . Part Studies Acquired 14 | . . . . . 1 . . . . . . . . . . . 3 . . . . . 2 . 3 . . 3 . 1 . 1 . . . . . Parts Repaired 5 | . . . . . 1 . . . . . . . . . . . 1 . . . 1 . . . . . . 1 . . . 1 . . . . . Time 210 | . . . . . 60 . . . . . . . . . . . 16 . . . 44 . . . . . . 56 . . . 34 . . . . . Parts Recycled . | . . . . . . . . . . . . . . . . . . . . . . . . . . . . . . . . . . . . . . Recycled Matter . | . . . . . . . . . . . . . . . . . . . . . . . . . . . . . . . . . . . . . . Retrieved Matter . | . . . . . . . . . . . . . . . . . . . . . . . . . . . . . . . . . . . . . . Retrieved Components 10 | . . . . . . . . . . . . . . . . . 10 . . . . . . . . . . . . . . . . . . . . Parts Scanalyzed 9 | . . . 1 . . . . . . . 1 . . . . . 2 . . . . . 4 . . . . . . 1 . . . . . . . Part Schematics Acquired 9 | . . . . . . . . . . . 1 . . . . . 3 . . . . . 4 . . . . . . 1 . . . . . . . Parts Damaged 1 | . . . . . . . . . . . . . . . . . . . . . . . 1 . . . . . . . . . . . . . . Bothacking | -11 -10 -10 -8 -8 -8 -8 -7 -7 -6 -6 -6 -6 -6 -6 -6 -6 -5 -5 -5 -5 -5 -5 -4 -4 -3 -3 -3 -3 -3 -2 -2 -2 -2 -1 -1 -1 -1 ------------ Run | Yrd Mat Sub Mat Gar Mat Gar Fac Gar Fac Was Fac Ext Cet Arc Hub Gar Fac Was Fac Gar Fac Gar Fac Gar Res Gar Res Tes Gar Res Qua Sec Gar Acc Gar Acc Com Used RIF Installer 13 | . . . . 2 . 1 . 1 . . . . . . . 1 . . . 1 . 1 . 2 . 1 . . 1 . . . 1 . 1 . . Code Merge 1 | . . . . . 1 . . . . . . . . . . . . . . . . . . . . . . . . . . . . . . . . Command Fork 2 | . . . . . . 1 . . . . . . . . . . . . . . . . . . . 1 . . . . . . . . . . . Threat Obfuscator 2 | . . . . . . . . . . . . . . . . . . . . 1 . . . . . . . . 1 . . . . . . . . Signal Jammer 1 | . . . . . . . . . . . . . . . . . . . . . . . . 1 . . . . . . . . . . . . . Zone Cloak 2 | . . . . . . . . 1 . . . . . . . . . . . . . . . 1 . . . . . . . . . . . . . Robot Detection 1 | . . . . 1 . . . . . . . . . . . . . . . . . . . . . . . . . . . . . . . . . Watcher Feeds 1 | . . . . . . . . . . . . . . . . . . . . . . 1 . . . . . . . . . . . . . . . Patrol Navigation 1 | . . . . . . . . . . . . . . . . 1 . . . . . . . . . . . . . . . . . . . . . Autooverride 1 | . . . . . . . . . . . . . . . . . . . . . . . . . . . . . . . . . 1 . . . . Autoassimilate 1 | . . . . . . . . . . . . . . . . . . . . . . . . . . . . . . . . . . . 1 . . Robots Hacked 263 | . . . . . . 2 6 . 3 . 9 2 1 1 3 13 29 5 1 8 16 6 10 . 7 2 11 6 7 12 8 18 8 19 12 23 15 Non-combat 57 | . . . . . . . 4 . 2 . 1 . . . 1 . 12 . . . 3 . 7 . 3 . 7 2 . 2 3 1 . 3 . 5 1 Combat 206 | . . . . . . 2 2 . 1 . 8 2 1 1 2 13 17 5 1 8 13 6 3 . 4 2 4 4 7 10 5 17 8 16 12 18 14 Autooverrided 12 | . . . . . . . . . . . . . . . . . . . . . . . . . . . . . . . . . . 4 3 1 4 Autoassimilated 9 | . . . . . . . . . . . . . . . . . . . . . . . . . . . . . . . . . . . . 7 2 Robot Hacks Applied 312 | . . . . . . 2 8 . 6 . 10 2 1 1 4 17 38 6 2 10 27 6 10 1 10 2 18 8 8 18 10 18 8 20 10 22 9 parse_system 13 | . . . . . . . . . . . 1 . 1 1 . . . 1 . . . . 1 . . . . 1 1 1 . 2 . 2 . 1 . find_chute 1 | . . . . . . . . . . . . . . . . . 1 . . . . . . . . . . . . . . . . . . . . map_walls 2 | . . . . . . . . . . . . . . . . . . . . . . . 1 . . . . . . . . . . . . 1 . find_fabricator 2 | . . . . . . . 2 . . . . . . . . . . . . . . . . . . . . . . . . . . . . . . drop_inventory 15 | . . . . . . . 2 . . . . . . . . . 1 . . . . . 3 . 2 . 4 . . 1 1 . . 1 . . . check_alert 1 | . . . . . . . . . 1 . . . . . . . . . . . . . . . . . . . . . . . . . . . . purge_threat 42 | . . . . . . . 1 . 2 . . . . . 1 . 6 . . . 7 . . . 3 . 5 1 . 5 2 . . 4 . 5 . reprogram_traps 1 | . . . . . . . . . . . . . . . . . . . . . 1 . . . . . . . . . . . . . . . . block_reporting 4 | . . . . . . . . . . . . . . . . . 1 . . . 1 . . . . . . . . . 2 . . . . . . map_route 1 | . . . . . . . . . . . . . . . . . . . . . . . . . . . . . . . . . . . . 1 . disable_scanner 3 | . . . . . . . . . . . . . . . . . . . . . . . . . . . . . . . 2 1 . . . . . report_analyses 1 | . . . . . . . . . . . . . . . . . . . . . . . . . . . . 1 . . . . . . . . . ignore_targets 4 | . . . . . . . . . . . . . . . . . . 4 . . . . . . . . . . . . . . . . . . . find_garrison 9 | . . . . . . . . . 1 . . . . . . . 1 . 1 . 2 . . . 1 . 1 . . 1 . . . 1 . . . scatter_targeting 1 | . . . . . . . . . . . . . . . . . . . . . . . . . . . . . . 1 . . . . . . . mark_system 1 | . . . . . . . . . . . . . . . . . . . . . . . . . . . . 1 . . . . . . . . . disrupt_area 1 | . . . . . . . . . . . . . . . . . . . . . 1 . . . . . . . . . . . . . . . . spike_heat 2 | . . . . . . . . . . . . . . . . . 1 . . . 1 . . . . . . . . . . . . . . . . overload_power 3 | . . . . . . . . . . . 1 . . . . . 1 1 . . . . . . . . . . . . . . . . . . . amplify_resonance 92 | . . . . . . 1 1 . . . 6 . . . 1 8 6 . 1 6 4 4 3 . 3 1 4 2 4 6 1 3 7 6 8 3 3 wipe_record 2 | . . . . . . . . . . . . . . . . . 1 . . . . . . . . . 1 . . . . . . . . . . disable_weapons 4 | . . . . . . . . . . . 1 1 . . . . . . . . . . . . . . . . . . . . . 1 . . 1 reboot_system 2 | . . . . . . . . . . . . . . . . . . . . . 1 . . . . . . . . . . . . . . 1 . overwrite_iff 30 | . . . . . . 1 . . . . . . . . . 7 6 . . 3 4 2 . . . . . . 1 1 . 1 1 1 2 . . streamctrl_low 2 | . . . . . . . . . . . . . . . . . . . . . . . . . . . . . . . . . . . . 2 . streamctrl_high 1 | . . . . . . . . . . . . . . . . . . . . . . . . . . . . . . . . 1 . . . . . formatsys_low 27 | . . . . . . . 1 . 2 . 1 . . . . . 5 . . . 2 . 2 1 1 . 2 2 . 1 . 3 . 1 . 2 1 formatsys_high 45 | . . . . . . . 1 . . . . 1 . . 2 2 8 . . 1 3 . . . . 1 1 . 2 1 2 7 . 3 . 6 4 Relay Couplers Released 136 | . . . . 7 . 9 . 8 . . . . . . . 11 6 . . 11 . 9 3 8 . 9 . . 15 . 2 . 18 . 20 . . Machine Destruction 136 | . . . . 7 . 9 . 8 . . . . . . . 11 6 . . 11 . 9 3 8 . 9 . . 15 . 2 . 18 . 20 . . Attached 64 | . . . . . . 1 2 . 2 . 2 1 . . 1 4 6 . . 2 3 1 2 1 . 2 3 . 5 2 2 2 5 2 5 1 7 Merged Code Value 224 | . . . . . . . . . . . . . . . . . . . . . . . . 16 . 48 . . 42 . . . 37 . 81 . . Fabnet Peak Effective % . | . . . . . . . . . . . . . . . . . . . . . . . . . . . . . . . . . . . . . . Robots Rewired 18 | . . . . . . . . 4 . . . 5 . . . . . . . . . 2 . . . 3 . . 2 . . . 2 . . . . Allies Hacked 19 | . . . . . . . 1 . . . . . . . . . 6 . . . . . . . . . 1 1 1 2 1 1 . 2 . 3 . Hacks Repelled . | . . . . . . . . . . . . . . . . . . . . . . . . . . . . . . . . . . . . . . Allies | -11 -10 -10 -8 -8 -8 -8 -7 -7 -6 -6 -6 -6 -6 -6 -6 -6 -5 -5 -5 -5 -5 -5 -4 -4 -3 -3 -3 -3 -3 -2 -2 -2 -2 -1 -1 -1 -1 -------- Run | Yrd Mat Sub Mat Gar Mat Gar Fac Gar Fac Was Fac Ext Cet Arc Hub Gar Fac Was Fac Gar Fac Gar Fac Gar Res Gar Res Tes Gar Res Qua Sec Gar Acc Gar Acc Com Total Allies 214 | . . 2 5 . . 1 3 6 2 . 6 12 5 . 2 9 25 . . 5 10 4 6 2 1 6 8 3 7 3 5 18 4 15 7 19 13 Largest Group 15 | . . 1 5 . . 1 3 6 7 6 11 11 15 14 9 2 5 . . 1 4 2 4 3 2 5 10 3 5 4 5 12 2 6 3 7 9 Highest-Rated Group 1196 | . . 8 125 . . 16 55 280 300 241 379 452 912 880 554 71 111 . . 40 76 238 123 165 103 544 619 85 401 299 218 855 264 377 172 769 1196 Highest-Rated Ally 219 | . . 8 25 . . 16 26 95 95 95 95 159 159 159 96 47 79 . . 40 47 119 119 80 80 119 119 49 119 110 64 89 148 142 80 219 219 Total Orders 100 | . . . . . . . . . 2 1 1 . . . 4 . 6 . . 1 1 . 3 3 . 1 7 13 8 5 9 13 2 1 . 6 13 STAY 55 | . . . . . . . . . 1 . . . . . 4 . 3 . . 1 1 . 1 2 . 1 4 7 5 3 4 7 1 1 . 4 5 ROAM 1 | . . . . . . . . . . . . . . . . . 1 . . . . . . . . . . . . . . . . . . . . FOLLOW 31 | . . . . . . . . . . . . . . . . . 1 . . . . . 1 . . . 2 4 3 2 5 5 1 . . 1 6 AID 13 | . . . . . . . . . 1 1 1 . . . . . 1 . . . . . 1 1 . . 1 2 . . . 1 . . . 1 2 Ally Attacks 1316 | . . 7 23 . . 4 1 12 21 . 125 56 21 36 46 27 64 . . 8 29 3 58 2 7 19 63 . 44 12 28 248 14 82 30 60 166 Total Damage 43338 | . . 47 530 . . . 15 339 752 . 2216 1506 389 770 1224 560 1569 . . 138 565 77 1494 82 242 702 2680 . 1901 410 647 5280 551 2911 862 2863 12016 Kills 244 | . . . 6 . . . . . 4 . 25 14 7 6 11 3 13 . . 1 6 . 17 1 4 3 12 . 15 4 . 29 2 17 4 14 26 Allies Corrupted 20 | . . . . . . . . . . . . . . . 1 . 1 . . . . . 1 . . . 1 . 1 2 . 2 . 4 1 5 1 Allies Melted 1 | . . . . . . . . . . . . . . . 1 . . . . . . . . . . . . . . . . . . . . . . X0-1V1 Amusement Gains 425 | . 20 . 20 30 . 30 16 10 . . . . . . 35 5 40 20 20 35 . . . . . . . 30 9 . 40 35 . . . . 30 Average Entertainment 77 | . 20 8 21 53 54 73 93 94 100 100 100 60 32 14 24 46 41 34 56 95 100 100 100 100 100 100 100 84 98 100 64 90 100 100 100 99 69 Good Acts 275 | . . 3 9 2 1 7 8 4 2 1 8 4 4 2 3 13 16 . 5 11 9 6 17 8 6 7 13 8 6 5 10 15 9 13 7 25 8 Bad Acts 125 | . . 6 4 5 8 5 2 6 1 1 4 1 . 5 4 2 11 1 7 2 7 3 1 . 1 4 1 9 4 3 9 . . 1 3 2 2 Intel | -11 -10 -10 -8 -8 -8 -8 -7 -7 -6 -6 -6 -6 -6 -6 -6 -6 -5 -5 -5 -5 -5 -5 -4 -4 -3 -3 -3 -3 -3 -2 -2 -2 -2 -1 -1 -1 -1 ------- Run | Yrd Mat Sub Mat Gar Mat Gar Fac Gar Fac Was Fac Ext Cet Arc Hub Gar Fac Was Fac Gar Fac Gar Fac Gar Res Gar Res Tes Gar Res Qua Sec Gar Acc Gar Acc Com Active Infowar (turns) 2343 | 13 1008 . . . . . . . . . . 2 . 99 176 . 2 . . . 483 15 . . . . . . . . . 545 . . . . . Optics 17 | . . . . . . . . . . . . 2 . . . . . . . . . 15 . . . . . . . . . . . . . . . Terrain 275 | . . . . . . . . . . . . . . 99 176 . . . . . . . . . . . . . . . . . . . . . . Seismic 1021 | 13 1008 . . . . . . . . . . . . . . . . . . . . . . . . . . . . . . . . . . . . Machine Analysis 485 | . . . . . . . . . . . . . . . . . 2 . . . 483 . . . . . . . . . . . . . . . . Cloaking 545 | . . . . . . . . . . . . . . . . . . . . . . . . . . . . . . . . 545 . . . . . Jamming 2 | . . . . . . . . . . . . . . . . . . . . . 2 . . . . . . . . . . . . . . . . Robot Analysis Total 9 | . 1 . 1 . . . . . . . . . . . . . 4 . . . . . 1 . . . . . . . 2 . . . . . . Derelict Logs Recovered 1 | . . 1 . . . . . . . . . . . . . . . . . . . . . . . . . . . . . . . . . . . Drone Launches . | . . . . . . . . . . . . . . . . . . . . . . . . . . . . . . . . . . . . . . Drone Recoveries . | . . . . . . . . . . . . . . . . . . . . . . . . . . . . . . . . . . . . . . Exploration | -11 -10 -10 -8 -8 -8 -8 -7 -7 -6 -6 -6 -6 -6 -6 -6 -6 -5 -5 -5 -5 -5 -5 -4 -4 -3 -3 -3 -3 -3 -2 -2 -2 -2 -1 -1 -1 -1 ------------- Run | Yrd Mat Sub Mat Gar Mat Gar Fac Gar Fac Was Fac Ext Cet Arc Hub Gar Fac Was Fac Gar Fac Gar Fac Gar Res Gar Res Tes Gar Res Qua Sec Gar Acc Gar Acc Com Turns Passed 48034 | 85 1290 1051 1200 1074 1300 645 1477 767 304 316 1124 943 449 841 361 1744 3257 360 1656 1476 2136 1026 2161 1632 900 1246 1645 1439 1051 931 1973 2370 1154 1117 1075 3466 992 Spaces Moved 23852 | 16 680 542 554 409 599 266 846 396 185 216 663 579 286 295 225 677 1681 148 660 597 967 320 1015 607 483 637 903 753 583 488 1060 1260 598 579 524 2070 485 Core . | . . . . . . . . . . . . . . . . . . . . . . . . . . . . . . . . . . . . . . Treads 14520 | 12 368 431 396 306 . . . . . . . . . . . 107 . . 225 597 967 320 40 540 271 637 903 753 583 488 1060 1260 598 579 524 2070 485 Legs 4 | 4 . . . . . . . . . . . . . . . . . . . . . . . . . . . . . . . . . . . . . Wheels 9328 | . 312 111 158 103 599 266 846 396 185 216 663 579 286 295 225 570 1681 148 435 . . . 975 67 212 . . . . . . . . . . . . Hover . | . . . . . . . . . . . . . . . . . . . . . . . . . . . . . . . . . . . . . . Flight . | . . . . . . . . . . . . . . . . . . . . . . . . . . . . . . . . . . . . . . Fastest Speed 115 | 120 115 150 148 130 130 145 145 130 115 130 130 115 130 130 130 160 120 180 160 160 152 152 180 180 141 151 151 146 141 141 141 143 143 151 151 143 143 Average Speed 155 | 150 147 157 153 162 144 145 145 150 129 130 130 129 130 130 130 187 146 180 193 204 171 217 182 226 157 151 151 146 144 141 144 151 143 151 151 143 143 Slowest Speed 535 | 160 240 160 305 246 145 145 160 160 130 130 130 130 130 130 130 320 180 180 320 240 305 232 232 232 232 151 151 199 199 141 151 535 143 151 151 151 143 Overloaded Moves . | . . . . . . . . . . . . . . . . . . . . . . . . . . . . . . . . . . . . . . Propulsion Burnouts . | . . . . . . . . . . . . . . . . . . . . . . . . . . . . . . . . . . . . . . Robots Hopped . | . . . . . . . . . . . . . . . . . . . . . . . . . . . . . . . . . . . . . . Potential Cave-ins 11 | . . . . . . . . . . . . . . . . . . . . . . . . . . . . . . . . . 2 . . 9 . Cave-ins Triggered . | . . . . . . . . . . . . . . . . . . . . . . . . . . . . . . . . . . . . . . Teleports 1 | . . . . . . . . . . . . . . . . . . . . . . . . . . . . . . . . . . . . 1 . Exploration Rate (%) 56 | 3 97 37 70 67 74 38 31 73 7 86 23 78 72 88 27 86 43 97 23 81 32 49 46 80 24 81 38 82 74 16 77 74 85 26 68 65 19 Regions Visited 37 Branch Regions 9 Pre-discovered Areas 6 | . 2 . 1 . 1 . 1 . . . 1 . . . . . . . . . . . . . . . . . . . . . . . . . . Known Exits Taken 15 | . . . 1 . 1 . 1 . . . . 1 . . 1 . . . 1 . 1 . 1 . 1 . 1 1 . 1 . 1 . 1 . 1 . Unknown Exits Taken 7 | 1 1 1 . . . . . . . . 1 . 1 1 . . . . . . . . . . . . . . . . 1 . . . . . . Scrap Searched . | . . . . . . . . . . . . . . . . . . . . . . . . . . . . . . . . . . . . . . Spaces Dug 142 | . . . 1 . 3 . . . . . . . . . 3 2 6 . 6 . 5 . . 4 2 . 18 8 . 2 5 37 13 4 . 22 1 Terrain Destroyed 1280 | . 24 19 10 . 3 58 . 71 2 . . . . 5 7 23 132 1 114 79 82 11 74 21 9 9 30 30 7 26 27 58 61 85 11 82 109 Melee 7 | . . . . . 3 . . . . . . . . . 3 1 . . . . . . . . . . . . . . . . . . . . . Projectile 543 | . 3 2 2 . . . . . . . . . . 5 4 12 37 1 52 9 57 11 24 16 9 9 30 30 7 26 27 58 22 20 6 56 8 AOE 730 | . 21 17 8 . . 58 . 71 2 . . . . . . 10 95 . 62 70 25 . 50 5 . . . . . . . . 39 65 5 26 101 Terrain Rammed . | . . . . . . . . . . . . . . . . . . . . . . . . . . . . . . . . . . . . . . Walls Destroyed . | . . . . . . . . . . . . . . . . . . . . . . . . . . . . . . . . . . . . . . Machines Disabled . | . . . . . . . . . . . . . . . . . . . . . . . . . . . . . . . . . . . . . . Actions | -11 -10 -10 -8 -8 -8 -8 -7 -7 -6 -6 -6 -6 -6 -6 -6 -6 -5 -5 -5 -5 -5 -5 -4 -4 -3 -3 -3 -3 -3 -2 -2 -2 -2 -1 -1 -1 -1 --------- Run | Yrd Mat Sub Mat Gar Mat Gar Fac Gar Fac Was Fac Ext Cet Arc Hub Gar Fac Was Fac Gar Fac Gar Fac Gar Res Gar Res Tes Gar Res Qua Sec Gar Acc Gar Acc Com Total 32560 | 65 868 655 744 717 936 442 1015 547 224 243 857 708 359 707 273 1004 2303 228 984 819 1348 610 1282 812 604 884 1154 1047 759 707 1466 1658 862 760 767 2447 695 Wait 3896 | 38 90 30 25 218 222 83 73 60 3 8 109 46 32 354 27 80 269 37 174 62 126 109 128 49 27 136 158 148 54 119 232 149 121 35 73 134 58 Move 23825 | 15 679 541 554 408 599 265 846 395 185 215 662 578 285 294 224 675 1681 147 660 596 967 319 1015 606 483 636 902 753 582 487 1059 1260 597 579 523 2069 484 Hop . | . . . . . . . . . . . . . . . . . . . . . . . . . . . . . . . . . . . . . . Pick Up 387 | . 17 6 21 2 11 7 5 10 1 4 7 3 11 3 1 21 20 1 5 16 17 16 21 14 12 5 3 11 10 3 17 28 16 3 16 13 10 Fast Attach 207 | 1 5 2 10 3 6 . 4 . 4 . . 5 3 7 . 11 16 1 12 12 14 7 8 4 7 3 . 7 2 2 16 11 3 1 4 11 5 Attach 209 | 2 1 . 8 . 3 3 3 1 1 . 3 . 2 3 2 10 39 3 2 10 20 12 4 2 6 4 3 2 4 6 12 13 2 4 3 7 9 Detach 81 | . 2 . 2 . . . . . . . 1 . . 1 . 3 22 3 4 5 11 6 2 . . . 1 . . 3 5 2 1 . 1 1 5 Swap 326 | 1 8 11 19 4 8 12 14 4 6 2 12 5 2 6 6 19 9 1 2 3 12 7 14 9 5 . 9 14 13 1 13 8 11 13 11 14 18 Drop 457 | 2 11 7 23 5 10 7 5 9 4 4 5 6 15 5 1 32 26 1 11 23 21 18 25 14 10 6 1 18 10 4 29 26 19 2 17 20 5 Fire 2795 | 6 49 58 76 55 72 41 58 16 19 10 51 51 9 21 9 101 199 34 114 90 144 103 63 100 54 86 72 91 71 73 74 152 92 121 93 170 97 Melee 121 | . . . 3 22 4 23 . . . . 6 . . 13 3 23 13 . . . . . . . . . . . . . 4 . . . 2 2 3 Ram 7 | . . . 1 . 1 . 1 . . . . . . . . . 4 . . . . . . . . . . . . . . . . . . . . Kick . | . . . . . . . . . . . . . . . . . . . . . . . . . . . . . . . . . . . . . . Crush 37 | . 6 . 2 . . . 2 . . . . . . . . . 1 . . . 2 . . . . . 4 2 . 6 4 1 . 1 . 5 1 Escape Stasis 52 | . . . . . . . . . . . . . . . . 28 . . . 2 . 8 . 14 . . . . . . . . . . . . . Rewire 111 | . . . . . . . 1 51 1 . . 14 . . . . . . . . 1 4 2 . . 8 1 1 13 3 1 8 . 1 . 1 . Trap . | . . . . . . . . . . . . . . . . . . . . . . . . . . . . . . . . . . . . . . Miscellaneous 49 | . . . . . . 1 3 1 . . 1 . . . . 1 4 . . . 13 1 . . . . . . . . . . . . 24 . . Route ------- -11/Scrapyard -10/Materials (discovered 6 exits: [*Mat x3] / [*Min x2] / *Sub) -10/Subcaves (discovered 2 exits: *Mat / [*Scr]) -8/Materials (discovered 4 exits: *Fac x3 / Gar) -8/Garrison (discovered 4 exits: *Fac x3 / *Mat) -8/Materials (discovered 3 exits: *Fac x2 / Gar) -8/Garrison (discovered 3 exits: *Fac x3) -7/Factory (discovered 3 exits: Fac / [*Low] / Gar) -7/Garrison (discovered 3 exits: *Fac x3) -6/Factory -6/Waste -6/Factory (discovered 2 exits: [*Low] / *Ext) -6/Extension (discovered 2 exits: *Fac / *Cet) -6/Cetus (discovered 2 exits: *Fac / [*Arc]) -6/Archives (discovered 3 exits: *Fac / *Hub x2) -6/Hub_04(d) -6/Garrison (discovered 3 exits: *Fac x3) -5/Factory (discovered 4 exits: Fac x2 / *Upp x2) -5/Waste -5/Factory (discovered 3 exits: Fac x2 / Gar) -5/Garrison (discovered 3 exits: *Fac x3) -5/Factory (discovered 4 exits: *Fac x2 / Upp / Gar) -5/Garrison (discovered 3 exits: *Fac x3) -4/Factory (discovered 4 exits: Res x2 / [*Upp] / Gar) -4/Garrison (discovered 3 exits: *Res x3) -3/Research -3/Garrison (discovered 4 exits: *Res x4) -3/Research (discovered 3 exits: *Res x2 / *Tes) -3/Testing (discovered 2 exits: *Res / Gar) -3/Garrison (discovered 3 exits: *Res x3) -2/Research (discovered 2 exits: *Qua x2) -2/Quarantine (discovered 3 exits: *Acc / *Sec / *Frg) -2/Section 7 (discovered 2 exits: *Acc / Gar) -2/Garrison (discovered 3 exits: *Acc x3) -1/Access (discovered 2 exits: Sur / Gar) -1/Garrison (discovered 3 exits: *Acc x3) -1/Access (discovered 2 exits: Sur / *Com) -1/Command 0b11 Command History --------- Turn | Location | Event 11 | -11/Scrapyard | Discovered new exit (range 3) 86 | -11/Scrapyard | Entered Materials 129 | -10/Materials | Central database locked down 187 | -10/Materials | Discovered new exit (range 8) 195 | -10/Materials | Discovered new exit (range 16) 318 | -10/Materials | Build established: Mutant 588 | -10/Materials | Discovered new exit (range 14) 673 | -10/Materials | Discovered new exit (range 4) 816 | -10/Materials | Discovered new exit (range 7) 965 | -10/Materials | Discovered new exit (range 12) 1368 | -10/Materials | Prayed at D.C.S.S. Altar Unit 1376 | -10/Materials | Entered Subcaves 1377 | -10/Subcaves | Approached by a straggling Scientist 1399 | -10/Subcaves | Learned 4 Materials zone layouts 1504 | -10/Subcaves | X0-1V1 sent you into danger 1518 | -10/Subcaves | Core integrity permanently improved by X0-1V1 (+200) 1571 | -10/Subcaves | X0-1V1 sent allied G-34 Mercenary (x2) 1813 | -10/Subcaves | Ambushed by Subdwellers from Twisted Machinery 1836 | -10/Subcaves | Shifting Twisted Machinery released Mak. Kinetic Plating 1836 | -10/Subcaves | Discovered new exit (range 11) 1866 | -10/Subcaves | Shifting Twisted Machinery released Sub. Laser 2109 | -10/Subcaves | Build established: Scavenger-Mutant 2136 | -10/Subcaves | Shifting Twisted Machinery released Riot Gun 2148 | -10/Subcaves | Shifting Twisted Machinery released Mak. Light Armor Plating 2240 | -10/Subcaves | Visited 4L-MR0's lab 2259 | -10/Subcaves | Found Cargo Legs 2427 | -10/Subcaves | Entered Materials 2427 | -8/Materials | Evolved 4 slots: Propulsion x2, Utility x1, Weapon x1 2428 | -8/Materials | Identified exit to Factory 2524 | -8/Materials | X0-1V1 vaporized surrounding terrain (radius 15) 2599 | -8/Materials | X0-1V1 whisked you away to safety 2693 | -8/Materials | Central database locked down 2721 | -8/Materials | Build established: Gunner 2861 | -8/Materials | X0-1V1 foreshadows a heat wave 2867 | -8/Materials | Utility slot count permanently improved by X0-1V1 (+1) 2934 | -8/Materials | Discovered exit to Factory (range 15) 2942 | -8/Materials | X0-1V1 sent you to a vault 2990 | -8/Materials | Ambient heat levels rising (+10) 3056 | -8/Materials | Lost 4 allies 3185 | -8/Materials | Ambient heat levels rising (+10) 3227 | -8/Materials | First assault squad dispatched 3287 | -8/Materials | X0-1V1 put everyone to sleep 3358 | -8/Materials | Build established: Tank 3435 | -8/Materials | Ambient heat levels falling (-10) 3540 | -8/Materials | X0-1V1 added 0b10 threat records associated with you (major) 3595 | -8/Materials | Discovered exit to Factory (range 11) 3627 | -8/Materials | Identified exit to Garrison 3627 | -8/Materials | Entered Garrison 3639 | -8/Garrison | Met a derelict Sapper fleeing the area 3639 | -8/Garrison | Phase Generator disabled 3675 | -8/Garrison | Discovered exit to Factory (range 60) 3675 | -8/Garrison | Discovered exit to Factory (range 78) 3675 | -8/Garrison | Discovered exit to Factory (range 72) 3675 | -8/Garrison | Discovered new exit (range 84) 3797 | -8/Garrison | Installed Relay Interface Framework 3876 | -8/Garrison | Triggered checkpoint 3931 | -8/Garrison | Triggered checkpoint 4034 | -8/Garrison | Triggered checkpoint 4112 | -8/Garrison | Expanded RIF knowledge: Robot Detection 4133 | -8/Garrison | Garrison Relay disabled 4135 | -8/Garrison | X0-1V1 caused items to flee you 4229 | -8/Garrison | Build established: Gunner 4259 | -8/Garrison | Ranged accuracy permanently improved by X0-1V1 (+9%; -90 max core) 4357 | -8/Garrison | Items stopped fleeing you 4373 | -8/Garrison | X0-1V1 mutated your Propulsion slot to Utility slot 4603 | -8/Garrison | Garrison Relay disabled 4628 | -8/Garrison | X0-1V1 sent hostile H-55 Commando (x3) 4679 | -8/Garrison | Triggered checkpoint 4701 | -8/Garrison | Entered Materials 4827 | -8/Materials | Central database locked down 4871 | -8/Materials | Repaired Enh. Autogun 5032 | -8/Materials | X0-1V1 sent you into danger 5065 | -8/Materials | X0-1V1 caused items to flee you 5294 | -8/Materials | Items stopped fleeing you 5447 | -8/Materials | System corruption reached 10% 5719 | -8/Materials | Discovered exit to Factory (range 5) 5901 | -8/Materials | First assault squad dispatched 5952 | -8/Materials | Discovered exit to Factory (range 16) 5959 | -8/Materials | Expanded RIF knowledge: Code Merge 6001 | -8/Materials | Identified exit to Garrison 6001 | -8/Materials | Entered Garrison 6025 | -8/Garrison | X0-1V1 activates XOMVISION 6122 | -8/Garrison | Destroyed 7 combat bots 6127 | -8/Garrison | Triggered checkpoint 6152 | -8/Garrison | Garrison Relay disabled 6242 | -8/Garrison | Discovered exit to Factory (range 35) 6242 | -8/Garrison | Discovered exit to Factory (range 70) 6242 | -8/Garrison | Discovered exit to Factory (range 74) 6279 | -8/Garrison | Triggered checkpoint 6310 | -8/Garrison | X0-1V1 activates XOMVISION 6381 | -8/Garrison | X0-1V1 caused items to flee you 6407 | -8/Garrison | X0-1V1 destroyed Phase Generator 6407 | -8/Garrison | Phase Generator disabled 6547 | -8/Garrison | Items stopped fleeing you 6574 | -8/Garrison | Garrison Relay disabled 6629 | -8/Garrison | Expanded RIF knowledge: Command Fork 6646 | -8/Garrison | Entered Factory 6646 | -7/Factory | Evolved 2 slots: Propulsion x1, Utility x1 6672 | -7/Factory | X0-1V1 vaporized surrounding terrain (radius 18) 6878 | -7/Factory | Build established: Bothacker-Gunner 7004 | -7/Factory | Allied Derelicts emerged from ambush trap array 7157 | -7/Factory | Discovered new exit (range 15) 7418 | -7/Factory | Build established: Gunner 7806 | -7/Factory | Identified exit to Factory 7806 | -7/Factory | X0-1V1 revealed exit location to -6/Factory 7941 | -7/Factory | Central database locked down 8006 | -7/Factory | X0-1V1 vaporized surrounding terrain (radius 18) 8013 | -7/Factory | Garrison activated, responded to threat 8091 | -7/Factory | Fabricated Hvy. Reactive Plating (x1) 8123 | -7/Factory | Identified exit to Garrison 8123 | -7/Factory | Entered Garrison 8123 | -7/Garrison | Discovered recently destroyed garrison 8145 | -7/Garrison | Found embedded Infiltrators 8173 | -7/Garrison | X0-1V1 revealed exit location to -6/Factory 8199 | -7/Garrison | Garrison Relay disabled 8393 | -7/Garrison | Enh. Autogun reconfigured into Item Mimic 8442 | -7/Garrison | X0-1V1 caused items to flee you 8539 | -7/Garrison | Expanded RIF knowledge: Zone Cloak 8597 | -7/Garrison | Phase Generator disabled 8602 | -7/Garrison | Garrison Relay disabled 8634 | -7/Garrison | Items stopped fleeing you 8663 | -7/Garrison | Discovered exit to Factory (range 11) 8735 | -7/Garrison | Discovered exit to Factory (range 58) 8735 | -7/Garrison | Discovered exit to Factory (range 39) 8735 | -7/Garrison | Discovered exit to Factory (range 32) 8831 | -7/Garrison | Build established: Botlord-Gunner 8890 | -7/Garrison | Entered Factory 8890 | -6/Factory | Accompanied by 6 allies 8890 | -6/Factory | Evolved 2 slots: Utility x2 9096 | -6/Factory | X0-1V1 made a cryptic comment about sterilization and BL-4Z3 9141 | -6/Factory | Assembled infested ambush trap array 9150 | -6/Factory | Discovered new exit (range 10) 9189 | -6/Factory | Sterilization system engaged 9189 | -6/Factory | Non-combat units ordered to evacuate 9194 | -6/Factory | Sucked down chute 9194 | -6/Factory | Entered Waste 9194 | -6/Waste | The area was eerily silent 9204 | -6/Waste | 1 allies followed down the chute 9249 | -6/Waste | Found Imp. Powered Armor 9254 | -6/Waste | 5 allies followed down the chute 9319 | -6/Waste | Found Imp. Powered Armor 9441 | -6/Waste | Discovered new exit (range 16) 9510 | -6/Waste | Entered Factory 9510 | -6/Factory | Accompanied by 6 allies 9898 | -6/Factory | Discovered new exit (range 15) 9898 | -6/Factory | X0-1V1 redirected Transport squads to designated parking area 9936 | -6/Factory | X0-1V1 activates XOMVISION 10153 | -6/Factory | X0-1V1 sent you to a vault 10210 | -6/Factory | X0-1V1 caused items to flee you 10364 | -6/Factory | Fabricated Hvy. Reactive Plating (x1) 10395 | -6/Factory | Items stopped fleeing you 10509 | -6/Factory | Spotted B-75 Beast 10549 | -6/Factory | Destroyed B-75 Beast 10576 | -6/Factory | Lost 3 allies 10621 | -6/Factory | Discovered new exit (range 10) 10634 | -6/Factory | Entered Extension 10634 | -6/Extension | Accompanied by 3 allies 10774 | -6/Extension | Rescued A7 10777 | -6/Extension | X0-1V1 caused items to flee you 10801 | -6/Extension | Rescued a captive Derelict 10828 | -6/Extension | Rescued a captive Derelict 10830 | -6/Extension | Rescued a captive Derelict 10910 | -6/Extension | Identified exit to Cetus 10910 | -6/Extension | X0-1V1 revealed exit location to -6/Cetus 10940 | -6/Extension | Items stopped fleeing you 11159 | -6/Extension | Spotted B-75 Beast 11173 | -6/Extension | Destroyed B-75 Beast 11183 | -6/Extension | Spotted B-75 Beast 11198 | -6/Extension | Destroyed B-75 Beast 11303 | -6/Extension | Rescued a captive Derelict 11304 | -6/Extension | Rescued a captive Derelict 11500 | -6/Extension | Discovered new exit (range 21) 11577 | -6/Extension | Entered Cetus 11577 | -6/Cetus | Accompanied by 11 allies (A7) 11582 | -6/Cetus | Acquired a Cetus Manufacturing Module code from A7 11595 | -6/Cetus | Spotted Cetus Guard 11595 | -6/Cetus | Spotted Cetus Guard 11595 | -6/Cetus | Spotted Cetus Guard 11595 | -6/Cetus | Spotted Cetus Guard 11601 | -6/Cetus | Destroyed Cetus Guard 11601 | -6/Cetus | Allies destroyed Cetus Guard 11606 | -6/Cetus | Allies destroyed Cetus Guard 11608 | -6/Cetus | Allies destroyed Cetus Guard 11661 | -6/Cetus | Build established: Bothacker-Gunner 11737 | -6/Cetus | Started Cetus Manufacturing Module 11750 | -6/Cetus | Escorted A7 to Cetus Mainframe 11762 | -6/Cetus | Manufactured an Enhanced Grunt 11787 | -6/Cetus | Manufactured an Enhanced Grunt 11812 | -6/Cetus | Manufactured an Enhanced Grunt 11837 | -6/Cetus | Manufactured an Enhanced Grunt 11862 | -6/Cetus | Manufactured an Enhanced Grunt 11876 | -6/Cetus | Discovered new exit (range 15) 11901 | -6/Cetus | Spotted Cetus Guard 11901 | -6/Cetus | Spotted Cetus Guard 11904 | -6/Cetus | Destroyed Cetus Guard 11906 | -6/Cetus | Allies destroyed Cetus Guard 11906 | -6/Cetus | Spotted Cetus Guard 11909 | -6/Cetus | Spotted Cetus Guard 11911 | -6/Cetus | Allies destroyed Cetus Guard 11913 | -6/Cetus | Allies destroyed Cetus Guard 11914 | -6/Cetus | Discovered new exit (range 18) 11923 | -6/Cetus | Met Revision 17 12026 | -6/Cetus | Entered Archives 12026 | -6/Archives | Accompanied by 15 allies (A7) 12031 | -6/Archives | Received a hacking code to weaken MAIN.C 12082 | -6/Archives | Lost 3 allies 12092 | -6/Archives | Discovered new exit (range 18) 12101 | -6/Archives | Discovered new exit (range 18) 12143 | -6/Archives | X0-1V1 activates XOMVISION 12191 | -6/Archives | System corruption reached 10% 12234 | -6/Archives | Discovered new exit (range 13) 12293 | -6/Archives | X0-1V1 caused items to flee you 12362 | -6/Archives | Build established: Bothacker-Mutant 12517 | -6/Archives | Items stopped fleeing you 12620 | -6/Archives | X0-1V1 sent someone to fix up the mess you leave 12867 | -6/Archives | Entered Hub_04(d) 12867 | -6/Hub_04(d) | Accompanied by 9 allies 12881 | -6/Hub_04(d) | Identified exit to Garrison 12904 | -6/Hub_04(d) | Garrison activated, responded to threat 13080 | -6/Hub_04(d) | Network Hub disabled 13081 | -6/Hub_04(d) | Disrupted transfer network 13103 | -6/Hub_04(d) | Network Hub disabled 13112 | -6/Hub_04(d) | Lost 4 allies 13228 | -6/Hub_04(d) | Entered Garrison 13293 | -6/Garrison | Triggered checkpoint 13434 | -6/Garrison | Expanded RIF knowledge: Patrol Navigation 13479 | -6/Garrison | Garrison Relay disabled 13568 | -6/Garrison | Spotted B-75 Beast 13586 | -6/Garrison | Triggered checkpoint 13618 | -6/Garrison | Lost 3 allies 13620 | -6/Garrison | Allies destroyed B-75 Beast 13624 | -6/Garrison | X0-1V1 destroyed Phase Generator 13624 | -6/Garrison | Phase Generator disabled 13652 | -6/Garrison | Triggered checkpoint 13886 | -6/Garrison | Discovered new exit (range 11) 13930 | -6/Garrison | Triggered checkpoint 13950 | -6/Garrison | Garrison Relay disabled 14054 | -6/Garrison | Build established: Botlord-Tank 14118 | -6/Garrison | Discovered new exit (range 10) 14225 | -6/Garrison | Identified exit to Factory 14225 | -6/Garrison | X0-1V1 revealed exit location to -5/Factory 14358 | -6/Garrison | Triggered checkpoint 14433 | -6/Garrison | Garrison Relay disabled 14568 | -6/Garrison | Triggered checkpoint 14629 | -6/Garrison | Triggered checkpoint 14703 | -6/Garrison | X0-1V1 activates XOMVISION 14842 | -6/Garrison | Triggered checkpoint 14972 | -6/Garrison | Entered Factory 14972 | -5/Factory | Accompanied by 2 allies 14972 | -5/Factory | Evolved 2 slots: Power x1, Utility x1 14989 | -5/Factory | Identified exit to Factory 14989 | -5/Factory | X0-1V1 revealed exit location to -4/Factory 15042 | -5/Factory | X0-1V1 announced a LAN party 15157 | -5/Factory | Watched by a mysterious "MATRIX" hacker 15179 | -5/Factory | Spotted B-75 Beast 15632 | -5/Factory | Discovered new exit (range 6) 15712 | -5/Factory | Identified exit to Upper Caves 15761 | -5/Factory | Fabricated Hvy. Reactive Plating (x1) 15788 | -5/Factory | X0-1V1 mutated your Weapon slot to Power slot 15966 | -5/Factory | Cargo convoy interrupted 15994 | -5/Factory | X0-1V1 activates XOMVISION 16108 | -5/Factory | Build established: Botlord-Mutant 16119 | -5/Factory | X0-1V1 sent you to a vault 16162 | -5/Factory | X0-1V1 revealed exit location to -4/Factory 16438 | -5/Factory | X0-1V1 whisked you away to safety 16548 | -5/Factory | Repaired Hvy. Reactive Plating 16727 | -5/Factory | Fabricated Remote Force Field? 16772 | -5/Factory | First assault squad dispatched 16954 | -5/Factory | X0-1V1 upgraded hostiles (x1) 17015 | -5/Factory | X0-1V1 caused items to flee you 17063 | -5/Factory | X0-1V1 activates XOMVISION 17284 | -5/Factory | Items stopped fleeing you 17312 | -5/Factory | Lost 3 parts (1p1n1u) 17509 | -5/Factory | Build established: Bothacker-Mutant 17524 | -5/Factory | Garrison activated, responded to threat 17557 | -5/Factory | X0-1V1 sent allied Knight (x1) 17571 | -5/Factory | Lost 7 allies 17882 | -5/Factory | Build established: Botlord-Mutant 18065 | -5/Factory | Fabricated Tri-rail Accelerator? 18216 | -5/Factory | X0-1V1 enhanced Transport squad support 18229 | -5/Factory | Sucked down chute 18229 | -5/Factory | Entered Waste 18235 | -5/Waste | Lost 3 allies 18273 | -5/Waste | Spotted C-40 Crusher 18276 | -5/Waste | Spotted C-40 Crusher 18291 | -5/Waste | Spotted C-40 Crusher 18291 | -5/Waste | Spotted C-40 Crusher 18291 | -5/Waste | Spotted C-40 Crusher 18342 | -5/Waste | Spotted C-40 Crusher 18358 | -5/Waste | Destroyed C-40 Crusher 18387 | -5/Waste | Destroyed C-40 Crusher 18400 | -5/Waste | Destroyed C-40 Crusher 18406 | -5/Waste | Destroyed C-40 Crusher 18449 | -5/Waste | Build established: Bothacker-Mutant 18518 | -5/Waste | Discovered new exit (range 15) 18589 | -5/Waste | Entered Factory 18631 | -5/Factory | X0-1V1 enhanced Transport squad support 18932 | -5/Factory | X0-1V1 announced a LAN party 18952 | -5/Factory | X0-1V1 revealed exit location to -4/Factory 19161 | -5/Factory | X0-1V1 redirected Transport squads to designated parking area 19214 | -5/Factory | X0-1V1 added 0b10 threat records associated with you (major) 19304 | -5/Factory | System corruption reached 10% 19321 | -5/Factory | X0-1V1 sent hostile B-60 Warrior (x3) 19533 | -5/Factory | Fabricated Centrium Heavy Treads? 19934 | -5/Factory | Fabricated Hvy. Reactive Plating (x1) 20115 | -5/Factory | X0-1V1 revealed exit location to -4/Factory 20245 | -5/Factory | Identified exit to Garrison 20245 | -5/Factory | Entered Garrison 20256 | -5/Garrison | Phase Generator disabled 20286 | -5/Garrison | X0-1V1 downgraded hostiles (x1) 20371 | -5/Garrison | Triggered checkpoint 20404 | -5/Garrison | Garrison Relay disabled 20458 | -5/Garrison | Identified exit to Factory 20458 | -5/Garrison | X0-1V1 revealed exit location to -5/Factory 20487 | -5/Garrison | Triggered checkpoint 20532 | -5/Garrison | Triggered checkpoint 20592 | -5/Garrison | Expanded RIF knowledge: Threat Obfuscation 20609 | -5/Garrison | Garrison Relay disabled 20719 | -5/Garrison | Discovered exit to Factory (range 10) 20737 | -5/Garrison | Triggered checkpoint 20922 | -5/Garrison | Found Unknown Launcher 20922 | -5/Garrison | Identified Fusion Bomb Launcher 21019 | -5/Garrison | Triggered checkpoint 21060 | -5/Garrison | Lost 3 allies 21143 | -5/Garrison | X0-1V1 activates XOMVISION 21170 | -5/Garrison | Spotted B-75 Beast 21259 | -5/Garrison | Triggered checkpoint 21277 | -5/Garrison | Garrison Relay disabled 21389 | -5/Garrison | Core integrity restored by X0-1V1 (+188) 21511 | -5/Garrison | Spotted B-75 Beast 21513 | -5/Garrison | Weapon slot count temporarily expanded by X0-1V1 (+1) 21588 | -5/Garrison | System corruption reached 30% 21602 | -5/Garrison | Build established: Botlord-Mutant 21682 | -5/Garrison | Discovered exit to Factory (range 10) 21689 | -5/Garrison | X0-1V1 activates XOMVISION 21721 | -5/Garrison | Entered Factory 21925 | -5/Factory | Repaired Tri-rail Accelerator 22010 | -5/Factory | X0-1V1 announced a LAN party 22021 | -5/Factory | First assault squad dispatched 22136 | -5/Factory | Weapon slot count reverted to normal (-1) 22384 | -5/Factory | X0-1V1 added 0b10 threat records associated with you (considerable) 22928 | -5/Factory | X0-1V1 redirected Transport squads to designated parking area 22997 | -5/Factory | X0-1V1 revealed exit location to -5/Upper Caves 23030 | -5/Factory | Discovered exit to Factory (range 12) 23209 | -5/Factory | X0-1V1 sent you to a vault 23215 | -5/Factory | Found Unknown Device 23215 | -5/Factory | Identified Heavy Servo Lattice 23409 | -5/Factory | Build established: Scavenger-Mutant 23559 | -5/Factory | Spotted B-75 Beast 23567 | -5/Factory | Destroyed B-75 Beast 23650 | -5/Factory | Discovered exit to Factory (range 5) 23786 | -5/Factory | X0-1V1 activates XOMVISION 23857 | -5/Factory | Identified exit to Garrison 23857 | -5/Factory | Entered Garrison 23893 | -5/Garrison | Discovered exit to Factory (range 72) 23893 | -5/Garrison | Discovered exit to Factory (range 74) 23893 | -5/Garrison | Discovered exit to Factory (range 46) 23908 | -5/Garrison | Triggered checkpoint 23945 | -5/Garrison | Garrison Relay disabled 24049 | -5/Garrison | X0-1V1 downgraded hostiles (x2) 24149 | -5/Garrison | Triggered checkpoint 24211 | -5/Garrison | Triggered checkpoint 24320 | -5/Garrison | X0-1V1 activates XOMVISION 24324 | -5/Garrison | Build established: Bothacker-Mutant 24360 | -5/Garrison | Expanded RIF knowledge: Watcher Feeds 24549 | -5/Garrison | Garrison Relay disabled 24564 | -5/Garrison | Triggered checkpoint 24622 | -5/Garrison | Spotted Striker 24622 | -5/Garrison | Spotted Striker 24667 | -5/Garrison | Destroyed Striker 24673 | -5/Garrison | Destroyed Striker 24745 | -5/Garrison | Rewired Executioner 24748 | -5/Garrison | Rewired Executioner 24791 | -5/Garrison | Destroyed Executioner 24812 | -5/Garrison | Found Prototype Device 24812 | -5/Garrison | Identified Adv. Kinecellerator 24818 | -5/Garrison | Found Prototype Processor 24818 | -5/Garrison | Identified Exp. Core Analyzer 24822 | -5/Garrison | Found Prototype Processor 24824 | -5/Garrison | Identified Exp. Targeting Computer 24829 | -5/Garrison | Found Exp. Core Analyzer 24878 | -5/Garrison | Build established: Botlord-Mutant 24883 | -5/Garrison | Entered Factory 24883 | -4/Factory | Accompanied by 1 ally 24883 | -4/Factory | Evolved 2 slots: Utility x1, Weapon x1 25100 | -4/Factory | X0-1V1 put everyone to sleep 25273 | -4/Factory | Build established: Botlord-Gunner 25658 | -4/Factory | Destroyed Executioner 25660 | -4/Factory | X0-1V1 activates XOMVISION 25688 | -4/Factory | Found Corrupted Exp. Targeting Computer 25694 | -4/Factory | Found Corrupted Adv. Kinecellerator 25842 | -4/Factory | Identified exit to Research 25842 | -4/Factory | X0-1V1 revealed exit location to -3/Research 25917 | -4/Factory | X0-1V1 woke everyone up 25969 | -4/Factory | Discovered new exit (range 16) 25974 | -4/Factory | X0-1V1 sent you to a vault 25980 | -4/Factory | Found Prototype Device 25980 | -4/Factory | Identified Exp. EM Disruption Field 25997 | -4/Factory | Found Prototype Special Weapon 25997 | -4/Factory | Identified Gui. Remote Datajack 26112 | -4/Factory | Fabricated Tri-rail Accelerator (x1) 26143 | -4/Factory | Fabricated Tri-rail Accelerator (x1) 26163 | -4/Factory | X0-1V1 sent allied Mutant (x4) 26207 | -4/Factory | Targeted by mysterious "MATRIX" hacker 26303 | -4/Factory | X0-1V1 revealed exit location to -3/Research 27044 | -4/Factory | Identified exit to Garrison 27044 | -4/Factory | Entered Garrison 27044 | -4/Garrison | Accompanied by 1 ally 27101 | -4/Garrison | P-80 Master assimilated allied Smith 7b 27133 | -4/Garrison | Expanded RIF knowledge: Signal Jamming 27460 | -4/Garrison | Triggered checkpoint 27479 | -4/Garrison | Destroyed B-86 Titan 27504 | -4/Garrison | Triggered checkpoint 27600 | -4/Garrison | Triggered checkpoint 27611 | -4/Garrison | Triggered checkpoint 27686 | -4/Garrison | Spotted B-86 Titan 27705 | -4/Garrison | Destroyed B-86 Titan 27726 | -4/Garrison | Destroyed 10 combat bots 27737 | -4/Garrison | Found Relay Coupler [Proto] 27741 | -4/Garrison | Found Relay Coupler [Proto] 27877 | -4/Garrison | Garrison Relay disabled 27908 | -4/Garrison | Triggered checkpoint 27932 | -4/Garrison | X0-1V1 revealed exit location to -3/Research 27955 | -4/Garrison | Discovered exit to Research (range 9) 27993 | -4/Garrison | X0-1V1 activates XOMVISION 28039 | -4/Garrison | X0-1V1 destroyed Phase Generator 28039 | -4/Garrison | Phase Generator disabled 28182 | -4/Garrison | Triggered checkpoint 28185 | -4/Garrison | Build established: Botlord-Tank 28249 | -4/Garrison | Expanded RIF knowledge: Zone Cloak 28295 | -4/Garrison | Garrison Relay disabled 28501 | -4/Garrison | Found embedded Infiltrators 28537 | -4/Garrison | Discovered exit to Research (range 9) 28550 | -4/Garrison | Triggered checkpoint 28676 | -4/Garrison | Entered Research 28676 | -3/Research | Accompanied by 2 allies 28676 | -3/Research | Evolved 2 slots: Propulsion x1, Utility x1 28876 | -3/Research | Revision forces began assault on 0b10 28936 | -3/Research | Met up with Revision 17++ 29037 | -3/Research | X0-1V1 sent you to a vault 29042 | -3/Research | Found Prototype Processor 29042 | -3/Research | Identified Exp. Armor Integrity Analyzer 29051 | -3/Research | Found Prototype Energy Cannon 29051 | -3/Research | Identified YOLO Cannon 29062 | -3/Research | Found Prototype Device 29062 | -3/Research | Identified Exp. EM Shield 29074 | -3/Research | Found Prototype Device 29074 | -3/Research | Identified Adv. Particle Accelerator 29108 | -3/Research | Build established: Botlord-Gunner 29304 | -3/Research | Spotted B-86 Titan 29316 | -3/Research | Destroyed B-86 Titan 29343 | -3/Research | Found Adv. Powered Armor 29346 | -3/Research | Found Adv. Powered Armor 29351 | -3/Research | Found Adv. Powered Armor 29376 | -3/Research | Research terminal network offline 29376 | -3/Research | X0-1V1 activates XOMVISION 29508 | -3/Research | Spotted Striker 29527 | -3/Research | Lost 5 allies 29576 | -3/Research | Identified exit to Garrison 29576 | -3/Research | Entered Garrison 29883 | -3/Garrison | Spotted B-86 Titan 29887 | -3/Garrison | Triggered checkpoint 29910 | -3/Garrison | Destroyed B-86 Titan 29912 | -3/Garrison | Triggered checkpoint 29921 | -3/Garrison | Identified exit to Research 29921 | -3/Garrison | X0-1V1 revealed exit location to -3/Research 29922 | -3/Garrison | Triggered checkpoint 29940 | -3/Garrison | Destroyed 7 combat bots 29998 | -3/Garrison | Triggered checkpoint 29999 | -3/Garrison | Discovered exit to Research (range 15) 30048 | -3/Garrison | Spotted B-75 Beast 30053 | -3/Garrison | Rewired B-86 Titan 30069 | -3/Garrison | Destroyed B-75 Beast 30121 | -3/Garrison | Expanded RIF knowledge: Command Fork 30131 | -3/Garrison | Triggered checkpoint 30150 | -3/Garrison | Garrison Relay disabled 30207 | -3/Garrison | Rewired Executioner 30212 | -3/Garrison | X0-1V1 sent you into danger 30250 | -3/Garrison | Lost 3 parts (1p1n1u) 30271 | -3/Garrison | Rewired Executioner 30356 | -3/Garrison | Triggered checkpoint 30412 | -3/Garrison | Discovered exit to Research (range 12) 30478 | -3/Garrison | Triggered checkpoint 30503 | -3/Garrison | Garrison Relay disabled 30630 | -3/Garrison | Found embedded Infiltrators 30630 | -3/Garrison | Discovered exit to Research (range 10) 30822 | -3/Garrison | Entered Research 30822 | -3/Research | Accompanied by 4 allies 30937 | -3/Research | X0-1V1 sent you to a vault 31406 | -3/Research | Identified exit to Research 31406 | -3/Research | X0-1V1 revealed exit location to -2/Research 31420 | -3/Research | Lost 4 allies 31584 | -3/Research | Discovered exit to Research (range 10) 31652 | -3/Research | Spotted B-86 Titan 31716 | -3/Research | Identified exit to Testing 31716 | -3/Research | X0-1V1 revealed exit location to -3/Testing 31931 | -3/Research | Destroyed 7 combat bots 32187 | -3/Research | X0-1V1 activates XOMVISION 32467 | -3/Research | Entered Testing 32467 | -3/Testing | Accompanied by 1 ally 32486 | -3/Testing | X0-1V1 sent you into danger 32526 | -3/Testing | Found Prototype Device 32526 | -3/Testing | Identified AEGIS Remote Shield 32610 | -3/Testing | Spotted Striker 32856 | -3/Testing | Repaired Broken Tri-rail Accelerator 33038 | -3/Testing | Found Prototype Processor 33038 | -3/Testing | Identified Exp. Target Analyzer 33321 | -3/Testing | Discovered exit to Research (range 13) 33532 | -3/Testing | X0-1V1 added 0b10 threat records associated with you (considerable) 33619 | -3/Testing | Found Prototype Hackware 33745 | -3/Testing | Spotted PL-CPRVP5TYHX 33811 | -3/Testing | Identified Ghost Barrier 33906 | -3/Testing | Identified exit to Garrison 33906 | -3/Testing | Entered Garrison 33906 | -3/Garrison | Accompanied by 1 ally 33910 | -3/Garrison | Spotted Executioner 33914 | -3/Garrison | Assimilated Executioner with formatsys_high 33993 | -3/Garrison | X0-1V1 destroyed Phase Generator 33993 | -3/Garrison | Phase Generator disabled 33997 | -3/Garrison | Rewired Striker 34004 | -3/Garrison | Rewired Striker 34113 | -3/Garrison | Discovered exit to Research (range 95) 34113 | -3/Garrison | Discovered exit to Research (range 59) 34113 | -3/Garrison | Discovered exit to Research (range 63) 34119 | -3/Garrison | Garrison Relay disabled 34195 | -3/Garrison | Triggered checkpoint 34226 | -3/Garrison | Expanded RIF knowledge: Threat Obfuscation 34232 | -3/Garrison | Garrison Relay disabled 34277 | -3/Garrison | X0-1V1 caused items to flee you 34335 | -3/Garrison | Triggered checkpoint 34363 | -3/Garrison | Spotted B-86 Titan 34364 | -3/Garrison | Weapon slot count temporarily expanded by X0-1V1 (+1) 34364 | -3/Garrison | Triggered checkpoint 34365 | -3/Garrison | Triggered checkpoint 34382 | -3/Garrison | Allies destroyed B-86 Titan 34385 | -3/Garrison | Destroyed 8 combat bots 34460 | -3/Garrison | Items stopped fleeing you 34508 | -3/Garrison | Garrison Relay disabled 34597 | -3/Garrison | Triggered checkpoint 34878 | -3/Garrison | Triggered checkpoint 34886 | -3/Garrison | Weapon slot count reverted to normal (-1) 34901 | -3/Garrison | Garrison Relay disabled 34957 | -3/Garrison | Entered Research 34957 | -2/Research | Accompanied by 3 allies 34957 | -2/Research | Evolved 2 slots: Utility x2 35226 | -2/Research | Central database locked down 35336 | -2/Research | Identified exit to Quarantine 35336 | -2/Research | X0-1V1 revealed exit location to -2/Quarantine 35348 | -2/Research | Fabricated Tri-rail Accelerator (x1) 35457 | -2/Research | First assault squad dispatched 35820 | -2/Research | Discovered exit to Quarantine (range 15) 35888 | -2/Research | Entered Quarantine 35888 | -2/Quarantine | Accompanied by 1 ally 35901 | -2/Quarantine | X0-1V1 added 0b10 threat records associated with you (major) 35969 | -2/Quarantine | X0-1V1 caused items to flee you 36121 | -2/Quarantine | X0-1V1 added 0b10 threat records associated with you (considerable) 36175 | -2/Quarantine | Items stopped fleeing you 36202 | -2/Quarantine | X0-1V1 sent you into danger 36517 | -2/Quarantine | System corruption reached 10% 36586 | -2/Quarantine | Found Alien Artifact 36601 | -2/Quarantine | Discovered new exit (range 12) 36749 | -2/Quarantine | Found Alien Artifact 36757 | -2/Quarantine | Found Alien Artifact 36757 | -2/Quarantine | Identified Dimensional Node Initializer 36757 | -2/Quarantine | Initialized slip node 36760 | -2/Quarantine | Found Dimensional Node Initializer 36768 | -2/Quarantine | Found Alien Artifact 36774 | -2/Quarantine | Found Alien Artifact 36843 | -2/Quarantine | Found Alien Impact Weapon 36960 | -2/Quarantine | Identified exit to Protoforge 36960 | -2/Quarantine | X0-1V1 revealed exit location to -2/Protoforge 37056 | -2/Quarantine | Identified Subatomic Replicator 37056 | -2/Quarantine | Used Subatomic Replicator to replicate AEGIS Remote Shield 37171 | -2/Quarantine | Spotted Fortress 37181 | -2/Quarantine | Identified Core Stripper 37198 | -2/Quarantine | Destroyed Fortress 37204 | -2/Quarantine | Found Unknown Protection 37204 | -2/Quarantine | Identified Hvy. Insulated Plating 37220 | -2/Quarantine | Found Prototype Device 37220 | -2/Quarantine | Identified Exp. Force Field 37224 | -2/Quarantine | Found Prototype Reactor 37224 | -2/Quarantine | Identified Vortex Chain Reactor 37227 | -2/Quarantine | Found Vortex Chain Reactor 37236 | -2/Quarantine | Found Exp. EM Shield 37261 | -2/Quarantine | Found Prototype Device 37261 | -2/Quarantine | Identified Thermal Barrier 37407 | -2/Quarantine | Discovered new exit (range 6) 37499 | -2/Quarantine | X0-1V1 sent you to a vault 37596 | -2/Quarantine | Cryocooling Duct disabled 37611 | -2/Quarantine | Ambient heat levels rising (+20) 37611 | -2/Quarantine | Non-combat units ordered to evacuate 37622 | -2/Quarantine | Spotted Alpha 7 37659 | -2/Quarantine | Destroyed Alpha 7 37670 | -2/Quarantine | Lost 3 allies 37861 | -2/Quarantine | Entered Section 7 38162 | -2/Section 7 | Spotted B-90 Cyclops 38170 | -2/Section 7 | Destroyed B-90 Cyclops 38189 | -2/Section 7 | Found Alien Artifact 38217 | -2/Section 7 | Identified Integrity Redistributor 38217 | -2/Section 7 | Identified Hpw. Transdimensional Reconstructor (x2) 38283 | -2/Section 7 | Spotted CY-PHR 38345 | -2/Section 7 | X0-1V1 sent you to a vault 38428 | -2/Section 7 | Discovered new exit (range 7) 38650 | -2/Section 7 | Used Integrity Redistributor, redistributed integrity from core (-111) 38757 | -2/Section 7 | Initialized slip node 38768 | -2/Section 7 | Found Alien Artifact 38855 | -2/Section 7 | Identified Integrated Reactor 38855 | -2/Section 7 | Installed Integrated Reactor, increased core energy generation (+10) 38913 | -2/Section 7 | Found Prototype Launcher 38963 | -2/Section 7 | Spotted Executioner 38964 | -2/Section 7 | Spotted Executioner 38977 | -2/Section 7 | Destroyed Executioner 38980 | -2/Section 7 | Allies destroyed Executioner 39068 | -2/Section 7 | Identified Ragnarok Missile Launcher 39126 | -2/Section 7 | Spotted B-99 Colossus 39145 | -2/Section 7 | Destroyed B-99 Colossus 39194 | -2/Section 7 | Lost 3 allies 39228 | -2/Section 7 | Found Integrity Redistributor 39228 | -2/Section 7 | Used Integrity Redistributor, redistributed integrity from core (-84) 39279 | -2/Section 7 | Found LRC Inertial Stabilizer 39281 | -2/Section 7 | Found Alien Artifact 39287 | -2/Section 7 | Identified LRC Insulator 39288 | -2/Section 7 | Installed LRC Insulator, 1 resistance modified: EM +25% 39290 | -2/Section 7 | Installed LRC Inertial Stabilizer, increased mass support (+10) 39349 | -2/Section 7 | Found Core Reset Matrix 39413 | -2/Section 7 | Spotted Alpha 7 39417 | -2/Section 7 | Spotted Alpha 7 39443 | -2/Section 7 | Destroyed Alpha 7 39450 | -2/Section 7 | Destroyed Alpha 7 39455 | -2/Section 7 | Spotted S7 Guard 39462 | -2/Section 7 | Allies destroyed S7 Guard 39493 | -2/Section 7 | Lost 4 allies 39495 | -2/Section 7 | Found Multirail 39533 | -2/Section 7 | Found Alien Artifact 39550 | -2/Section 7 | Identified Core Regenerator 39598 | -2/Section 7 | Spotted S7 Guard 39609 | -2/Section 7 | Allies destroyed S7 Guard 39649 | -2/Section 7 | Found Alien Artifact 39850 | -2/Section 7 | Repaired Adv. Powered Armor 40050 | -2/Section 7 | Identified Core Physics Calibrator 40055 | -2/Section 7 | Found Unknown Device 40055 | -2/Section 7 | Identified Adv. Force Booster 40082 | -2/Section 7 | X0-1V1 put everyone to sleep 40210 | -2/Section 7 | Found Alien Artifact 40231 | -2/Section 7 | Identified exit to Garrison 40231 | -2/Section 7 | Entered Garrison 40231 | -2/Garrison | Accompanied by 1 ally 40283 | -2/Garrison | Garrison Relay disabled 40308 | -2/Garrison | Triggered checkpoint 40367 | -2/Garrison | Garrison Relay disabled 40468 | -2/Garrison | Spotted B-90 Cyclops 40470 | -2/Garrison | Triggered checkpoint 40475 | -2/Garrison | Triggered checkpoint 40489 | -2/Garrison | Destroyed B-90 Cyclops 40519 | -2/Garrison | Triggered checkpoint 40546 | -2/Garrison | Triggered checkpoint 40621 | -2/Garrison | Triggered checkpoint 40640 | -2/Garrison | Garrison Relay disabled 40647 | -2/Garrison | Found Thermal Barrier 40672 | -2/Garrison | Discovered new exit (range 9) 40714 | -2/Garrison | Found Relay Coupler [Proto] 40718 | -2/Garrison | Found Relay Coupler [Proto] 40721 | -2/Garrison | Found Relay Coupler [Proto] 40781 | -2/Garrison | Spotted B-90 Cyclops 40795 | -2/Garrison | Rewired B-86 Titan 40800 | -2/Garrison | Destroyed B-90 Cyclops 40807 | -2/Garrison | Rewired B-90 Cyclops 40939 | -2/Garrison | Garrison Relay disabled 40958 | -2/Garrison | Triggered checkpoint 40988 | -2/Garrison | Expanded RIF knowledge: Autooverride 41003 | -2/Garrison | Discovered new exit (range 6) 41173 | -2/Garrison | Triggered checkpoint 41209 | -2/Garrison | Garrison Relay disabled 41323 | -2/Garrison | Discovered new exit (range 13) 41376 | -2/Garrison | X0-1V1 activates XOMVISION 41385 | -2/Garrison | Entered Access 41385 | -1/Access | Accompanied by 2 allies 41385 | -1/Access | Evolved 2 slots: Propulsion x1, Utility x1 41635 | -1/Access | First assault squad dispatched 41646 | -1/Access | Found Femtoactuators 41724 | -1/Access | Garrison activated, responded to threat 41971 | -1/Access | Spotted B-99 Colossus 41973 | -1/Access | Spotted B-99 Colossus 42002 | -1/Access | Destroyed B-99 Colossus 42003 | -1/Access | X0-1V1 destroyed Energy Cycler 42003 | -1/Access | Energy Cycler disabled 42024 | -1/Access | Destroyed B-99 Colossus 42051 | -1/Access | X0-1V1 sent you to a vault 42083 | -1/Access | X0-1V1 activates XOMVISION 42199 | -1/Access | Identified exit to Surface 42199 | -1/Access | X0-1V1 revealed exit location to -0/Surface 42275 | -1/Access | X0-1V1 put everyone to sleep 42398 | -1/Access | Destroyed 10 combat bots 42458 | -1/Access | Build established: Botlord-Tank 42492 | -1/Access | Spotted B-99 Colossus 42502 | -1/Access | Identified exit to Garrison 42502 | -1/Access | Entered Garrison 42502 | -1/Garrison | Accompanied by 1 ally 42523 | -1/Garrison | Triggered checkpoint 42549 | -1/Garrison | Triggered checkpoint 42559 | -1/Garrison | Garrison Relay disabled 42714 | -1/Garrison | Triggered checkpoint 42714 | -1/Garrison | Triggered checkpoint 42755 | -1/Garrison | Spotted B-99 Colossus 42783 | -1/Garrison | X0-1V1 destroyed Phase Generator 42783 | -1/Garrison | Phase Generator disabled 42799 | -1/Garrison | Lost 3 allies 42799 | -1/Garrison | Destroyed B-99 Colossus 42831 | -1/Garrison | Found Multirail 42837 | -1/Garrison | Destroyed 8 combat bots 42906 | -1/Garrison | X0-1V1 sent hostile Fireman (x3) 42936 | -1/Garrison | Destroyed 11 combat bots 42938 | -1/Garrison | Triggered checkpoint 42973 | -1/Garrison | Garrison Relay disabled 43026 | -1/Garrison | Identified exit to Access 43026 | -1/Garrison | X0-1V1 revealed exit location to -1/Access 43068 | -1/Garrison | Discovered exit to Access (range 9) 43076 | -1/Garrison | Learned Access security intel 43103 | -1/Garrison | Garrison Relay disabled 43132 | -1/Garrison | Found embedded Infiltrators 43157 | -1/Garrison | Triggered checkpoint 43169 | -1/Garrison | Expanded RIF knowledge: Autoassimilate 43190 | -1/Garrison | Garrison Relay disabled 43252 | -1/Garrison | Discovered exit to Access (range 26) 43252 | -1/Garrison | Discovered exit to Access (range 32) 43252 | -1/Garrison | Discovered exit to Access (range 54) 43329 | -1/Garrison | Garrison Relay disabled 43469 | -1/Garrison | Found Relay Coupler [Proto] 43473 | -1/Garrison | Found Relay Coupler [Proto] 43478 | -1/Garrison | Found Relay Coupler [Proto] 43481 | -1/Garrison | Found Relay Coupler [Proto] 43482 | -1/Garrison | X0-1V1 activates XOMVISION 43577 | -1/Garrison | Entered Access 43730 | -1/Access | Garrison activated, responded to threat 43774 | -1/Access | Build established: Botlord-Gunner 43785 | -1/Access | X0-1V1 sent you to a vault 43814 | -1/Access | Found Alien Artifact 43818 | -1/Access | Found Gui. Remote Datajack 43833 | -1/Access | Found Vortex Chain Reactor 43857 | -1/Access | X0-1V1 vaporized surrounding terrain (radius 21) 43898 | -1/Access | X0-1V1 activates XOMVISION 44273 | -1/Access | Spotted B-99 Colossus 44281 | -1/Access | Destroyed B-99 Colossus 44412 | -1/Access | Spotted B-99 Colossus 44779 | -1/Access | X0-1V1 sent you into danger 44822 | -1/Access | X0-1V1 activates XOMVISION 44903 | -1/Access | X0-1V1 revealed exit location to -0/Surface 44997 | -1/Access | Garrison activated, responded to threat 45026 | -1/Access | Identified Transdimensional Reconstructor 45026 | -1/Access | Warped through subspace 45092 | -1/Access | Identified Integrated Mediator 45092 | -1/Access | Installed Integrated Mediator, increased core attachment efficiency 45167 | -1/Access | Spotted B-99 Colossus 45172 | -1/Access | Spotted B-99 Colossus 45175 | -1/Access | Assimilated Colossus 10a with formatsys_high 45176 | -1/Access | Assimilated Colossus 10b with formatsys_high 45942 | -1/Access | Garrison activated, responded to threat 46358 | -1/Access | Identified exit to Command 46358 | -1/Access | X0-1V1 revealed exit location to -1/Command 46447 | -1/Access | Build established: Botlord-Mutant 46577 | -1/Access | First assault squad dispatched 46604 | -1/Access | X0-1V1 destroyed Energy Cycler 46604 | -1/Access | Energy Cycler disabled 46653 | -1/Access | X0-1V1 activates XOMVISION 46742 | -1/Access | X0-1V1 put everyone to sleep 47043 | -1/Access | Entered Command 47043 | -1/Command | Accompanied by 3 allies 47278 | -1/Command | Spotted Striker 47279 | -1/Command | Spotted Executioner 47302 | -1/Command | Spotted Alpha 7 47302 | -1/Command | Spotted Striker 47302 | -1/Command | Spotted Executioner 47302 | -1/Command | Spotted Executioner 47302 | -1/Command | Spotted Alpha 7 47302 | -1/Command | Spotted Executioner 47303 | -1/Command | Autoassimilated Executioner with RIF 47304 | -1/Command | Spotted B-99 Colossus 47304 | -1/Command | Spotted B-99 Colossus 47312 | -1/Command | Assimilated Alpha 7 with formatsys_high 47312 | -1/Command | Assimilated Striker with formatsys_high 47314 | -1/Command | Assimilated Alpha 7 with formatsys_high 47314 | -1/Command | Assimilated Striker with formatsys_high 47316 | -1/Command | Assimilated Executioner with formatsys_high 47341 | -1/Command | Destroyed B-99 Colossus 47350 | -1/Command | Allies destroyed B-99 Colossus 47362 | -1/Command | Discovered exit to Surface (range 8) 47364 | -1/Command | Found Exp. Core Analyzer 47370 | -1/Command | Lost 5 allies 47534 | -1/Command | Spotted Combat Programmer 47535 | -1/Command | Destroyed Combat Programmer 47535 | -1/Command | Spotted Combat Programmer 47538 | -1/Command | Destroyed Combat Programmer 47542 | -1/Command | Spotted M Guard 47542 | -1/Command | Spotted M Guard 47543 | -1/Command | Autoassimilated M Guard with RIF 47545 | -1/Command | Assimilated M Guard with formatsys_high 47549 | -1/Command | Found Prototype Special Weapon 47549 | -1/Command | Identified Exp. Remote Datajack 47572 | -1/Command | Found Prototype Energy Cannon 47589 | -1/Command | Found Prototype Energy Cannon 47684 | -1/Command | Met MAIN.C 47685 | -1/Command | 0b10 Conduit disabled 47691 | -1/Command | X0-1V1 whisked you away to safety 47700 | -1/Command | MAIN.C activated Command garrisons 47769 | -1/Command | Phase Generator disabled 47811 | -1/Command | All MAIN.C guards destroyed 47869 | -1/Command | Found Corrupted Multirail 47908 | -1/Command | Destroyed 23 combat bots 47940 | -1/Command | Spotted B-99 Colossus 47941 | -1/Command | Destroyed 9 combat bots 47962 | -1/Command | Lost 5 parts (3u2w) 48035 | *** | Establishing 0b11! Last Messages --------------- effect. 47940_ X-87 Electro system terminally corrupted. 47945_ Slug penetrates Wall. 47945_ Penetrated by Slug. 47946_ The unstable cave ceiling collapses. 47948_ Acquired 92 matter. 47997_ Acquired 7 matter. X0-1V1's Piety Tracker suddenly appears amidst shimmering waves of color. 48000_ G-73 Enforcer destroyed. 48002_ Destroyed Lgt. Quantum Reactor. 48004_ The unstable cave ceiling collapses. 48004_ G-73 Enforcer destroyed. 48011_ R-10 Processor destroyed. 48022_ Acquired 36 matter. 48025_ Acquired 116 matter. 48027_ Acquired 18 matter. 48032_ Slug penetrates Wall. [Achievement: 150k Club] [Achievement: One Last FU] Map ----- +----------------------------------------------------+ | ???????????????????# [% #??????? | | #######??????????????# = #??????? | | % # ################ ! #??????? | | ![% " % #??????? | | %## % +??????? | | =*# ################%% #??????? | | ## ##?????????????#" #######+####+#+#??????? | | ## #??????????????## "#????# ??????????????? | | "# #??????????????##"""+"#????# ??????????????? | | "# #????????????###^ ##???# ??????????????? | | ""## #????????????#"%^^ % "#???# ??????????????? | | ??? #????????????## %^^^ #???# ??????????????? | | ??? #????????????#;;^% %^^;#???# ??????????????? | | ??## #????????????#; =^ #???# ??????????????? | | ???# #????????????##; %! ;#???? ??????????????? | | ???# #????????????#" ^^^^^ #???????????????????? | | ??? ????????????### ^^^^^;##??????????????????? | | ??? ?????????????# ^^^^ ;#??????????????????? | | ??? ???????????###%^^ ^ ^;;##?????????????????? | | ??? ???????????# %% % %#?????????????????? | | ???# #???????????# %% #?????????????????? | | ???? ????????????# ^ ^ ^ ^ %#?????????????????? | | ???? ????????????# ^ ^ #?????????????????? | | ???? ????????????# ^ ##????????????????? | | ??????????????????# "" ^ ;#????????????????? | | ??????????????????# "@ ^ ##????????????????? | | ??????????????????# ^ #?????????????????? | | ??????????????????# ^ #?????????????????? | | ??????????????????# #?????????????????? | | ??????????????????# #?????????????????? | | ??????????????????# #?????????????????? | | ??????????????????##############?????????????????? | | ?????????????????????????????????????????????????? | | ?????????????????????????????????????????????????? | | ?????????????????????????????????????????????????? | | ?????????????????????????????????????????????????? | | ?????????????????????????????????????????????????? | | ?????????????????????????????????????????????????? | | ?????????????????????????????????????????????????? | | ?????????????????????????????????????????????????? | | ?????????????????????????????????????????????????? | | ?????????????????????????????????????????????????? | | ?????????????????????????????????????????????????? | | ?????????????????????????????????????????????????? | | ?????????????????????????????????????????????????? | | ?????????????????????????????????????????????????? | | ?????????????????????????????????????????????????? | | ?????????????????????????????????????????????????? | | ?????????????????????????????????????????????????? | | ?????????????????????????????????????????????????? | +----------------------------------------------------+ Best States ------------- Heat Dissipation 146 Energy Generation 89 Energy Capacity 2350 Matter Stores 1000 Matter Capacity 1000 Sight Range 23 Terrain Scan Range 20 Terrain Scan Density 85 Cloak Strength 3 EM Shielding 4 Armor Coverage 1600 Resistance: KI 42 Resistance: TH 50 Resistance: EM 100 Utility Shielding 66 Weapon Shielding 90 Weapon Cycling 25 Melee Speed Boost 50 Phase Shifting 15 Evasion (%) 55 Targeting Accuracy 24 Target Analysis 5 Core Analysis 12 Recoil Reduction 6 Kinecelleration 50 Offensive Hacking 48 Defensive Hacking 10 Relay Coupler Types 6 Relay Coupler Value 231 Authchip Count 1 Trap Extractor Capacity 6 Item Schematics ----------------- Hvy. Reactive Plating | -7/Factory | Hacked Imp. Hacking Suite | -6/Factory | Scanalyzed Remote Force Field | -6/Garrison | Hacked Hvy. Linear Accelerator | -5/Factory | Scanalyzed Multitool | -5/Factory | Scanalyzed Centrium Heavy Treads | -5/Factory | Scanalyzed Tri-rail Accelerator | -5/Factory | Hacked Imp. Remote Force Field | -5/Factory | Hacked Adv. Weapon Cycler | -4/Factory | Scanalyzed Adv. Thermal Defense Suite | -4/Factory | Scanalyzed Fusion Bomb Launcher | -4/Factory | Scanalyzed Biometal Heavy Treads | -4/Factory | Scanalyzed Hds. Centrium Wheel | -3/Garrison | Archive Exp. Thermal Defense Suite | -3/Garrison | Archive Hvy. Siege Treads | -2/Research | Scanalyzed Hvy. Tesla Rifle | -2/Section 7 | Archive Helical Railgun | -2/Section 7 | Archive Hvy. Antimatter Reactor | -2/Section 7 | Archive Spectral Analyzer | -2/Section 7 | Archive Imp. Quantum Reactor | -2/Section 7 | Archive Robot Schematics ------------------ M-28 Smith | -6/Factory | Hacked M-13 Machinist | -6/Garrison | Hacked R-10 Processor | -4/Factory | Hacked H-77 Assassin | -3/Garrison | Archive R-06 Scavenger | -2/Section 7 | Archive C-57 Dissector | -2/Section 7 | Archive A-27 Freighter | -2/Section 7 | Archive Fabricated ------------ Hvy. Reactive Plating | x1 | -7/Factory Hvy. Reactive Plating | x1 | -6/Factory Hvy. Reactive Plating | x1 | -5/Factory Remote Force Field | x2 | -5/Factory Tri-rail Accelerator | x1 | -5/Factory Centrium Heavy Treads | x1 | -5/Factory Hvy. Reactive Plating | x1 | -5/Factory Tri-rail Accelerator | x1 | -4/Factory | Authchip Tri-rail Accelerator | x1 | -4/Factory Tri-rail Accelerator | x1 | -2/Research Repaired ---------- Enh. Autogun | 20% | -8/Materials Hvy. Reactive Plating | 18% | -5/Factory Tri-rail Accelerator | 25% | -5/Factory Tri-rail Accelerator | 24% | -3/Testing | Broken Adv. Powered Armor | 23% | -2/Section 7 Studied --------- Minigun | -8/Materials | Hacked Arm. Huge Wheel | -5/Factory | Hacked Remote Datajack | -5/Factory | Hacked Rnf. Fission Core | -5/Factory | Hacked Imp. Remote Datajack | -4/Factory | Hacked Particle Reactor | -4/Factory | Hacked Biometal Heavy Treads | -3/Research | Hacked Hvy. Treads | -3/Research | Hacked Fusion Bomb Launcher | -3/Research | Hacked Adv. Heavy Treads | -3/Testing | Hacked Adv. Remote Datajack | -3/Testing | Hacked Hvy. Siege Treads | -3/Testing | Hacked Lgt. Quantum Reactor | -2/Research | Hacked Quantum Reactor | -2/Section 7 | Hacked Alien Tech Used ----------------- Dimensional Node Initializer Subatomic Replicator Core Stripper Integrity Redistributor Integrated Reactor LRC Insulator LRC Inertial Stabilizer Transdimensional Reconstructor Integrated Mediator Achievements -------------- 150k Club Fight Me IRL One Last FU Partsplosion Challenges ------------ None Game ------ Seed StealthBoreJammer Manual? 0 Play Time 08:24:15 Cumulative 702.6 hours Start 2026.09.21 @ 14:11:03 End 2026.09.24 @ 09:42:26 Sessions 27 Manual Loads 0 Difficulty Rogue Special Mode None Game No. 631 Rogue 595 Adventurer 36 Explorer 0 Win Type 1 Total 10 Types 2/3/0/1/1/0/0/2/1/0 Lore% 86 Gallery% 76 Achievement% 72 Wizard Run 0 Options --------- Layout 2 ASCII 0 Keyboard 0 Movement Numpad Keybinds 0 Fullscreen 1 Font 48/Smallcaps Map View 50x44 Zoom Use 0% Tactical HUD 1 Map Filters NONE Filters NONE Steam 1 RUN: 137d5294-1de9-4208-bb6f-50509d78f5a5